Workbook

Sheet NOTES
A2: The model has actual and test data to illustrate the workings of the model. | D2: ='Model update'!B5 -> 2022
A4: Issue | B4: Location | C4: Item | D4: Comment
A6: 1 | B6: 'Model update'!B21 | C6: CPI | D6: ="Updated June "&D2-1&" CPI for "&D2 -> Updated June 2021 CPI for 2022 | E6: NOTE: This worksheet is programmed to update for each year - use as checklist and note any placeholders or changes
E7: NOTE: Worksheet names in this file are programmed to update each year once each worksheet is accessed and a cell is selected
A8: =A6+1 -> 2 | B8: 'Model update'!B36 | C8: ="Xt for "&D2 -> Xt for 2022 | D8: ="Updated for "&D2&" annual update " -> Updated for 2022 annual update
A10: =A8+1 -> 3 | B10: 'Model update'!B46 | C10: ="Pass Through Amount for "&D2 -> Pass Through Amount for 2022 | D10: NIL for 2021
A12: =A10+1 -> 4 | B12: 'Model update'!B57 | C12: Real Pre-tax WACC (rptw) | D12: ="Updated for "&$D$2&" annual update" -> Updated for 2022 annual update
A14: =A12+1 -> 5 | B14: ="Prop"&D2&"DistTar!E8:E134" -> Prop2022DistTar!E8:E134 | C14: =D2-1&" tariffs" -> 2021 tariffs | D14: ="Updated from "&D2-1&" model" -> Updated from 2021 model
A16: =A14+1 -> 6 | B16: ARS!B6:B9 | C16: =D2-1&" ARS tariffs" -> 2021 ARS tariffs | D16: ="Updated from "&D2-1&" model" -> Updated from 2021 model
A18: =A16+1 -> 7 | B18: The following is test data to illustrate the workings of the model. | D18: Input data required from DNSPs
B19: ="Prop"&D2&"DistTar!D8:D134" -> Prop2022DistTar!D8:D134 | C19: ="Proposed "&D2&" Tariffs" -> Proposed 2022 Tariffs
B20: ="Prop"&D2&"DistTar!F8:F134" -> Prop2022DistTar!F8:F134 | C20: ="Actual "&D2-2&" Volumes" -> Actual 2020 Volumes
B22: ARS!C6:C9 | C22: ="Proposed "&D2&" Ancillary Reference Services Charges" -> Proposed 2022 Ancillary Reference Services Charges | D22: Calculated using formula

Sheet Model update
A3: Tariff Approval Template for | B3: AusNet Services
A5: Calendar year commencing | B5: 2022
A7: t | B7: =B5 -> 2022
A8: t-1 | B8: =B7-1 -> 2021
A9: t-2 | B9: 2020
A10: t-3 | B10: 2019
A13: Please fill in yellow highlighted cells where appropriate
A15: CPI
A17: CPI Index June 2016 | B17: 108.6
A18: CPI Index June 2017 | B18: 110.7
A19: CPI Index June 2018 | B19: 113
A20: CPI Index June 2019 | B20: 114.8
A21: CPI Index June 2020 | B21: 114.4
A22: CPI Index June 2021 | B22: 118.8
A25: ="CPI Index June " &$B$10 -> CPI Index June 2019 | B25: =VLOOKUP(A25,A$17:D$22,2,FALSE) -> 114.8
A26: ="CPI Index June " &$B$9 -> CPI Index June 2020 | B26: =VLOOKUP(A26,A$17:D$22,2,FALSE) -> 114.4
A27: ="CPI Index June " &$B$8 -> CPI Index June 2021 | B27: =VLOOKUP(A27,A$17:D$22,2,FALSE) -> 118.8
A29: ="CPI " &$B$8 -> CPI 2021 | B29: =B26/B25-1 -> -0.003484320557
A30: ="CPI " &$B$5 -> CPI 2022 | B30: =B27/B26-1 -> 0.03846153846
A33: ="Xt for "&B$5 -> Xt for 2022
A34: 2019 | B34: 0.007392892718
A35: 2020 | B35: 0.01278415061
A36: 2021 | B36: 0.01662321806
A37: 2022 | B37: 0.0189982694
A40: ="Xt for "&B$5 -> Xt for 2022 | B40: =VLOOKUP(B5,A34:B38,2,FALSE) -> 0.0189982694
A43: Pass Through Amounts : PT (t)
A44: 2019 | B44: 0
A45: 2020 | B45: 0
A46: 2021 | B46: 0
A47: 2022 | B47: 0
A50: ="Pass Through Amount for "&B$5 -> Pass Through Amount for 2022 | B50: =VLOOKUP(B5,A44:B48,2,FALSE) -> 0
A51: The Pass Through Amount is to include an amount that reflects the time value of money between incurring the costs and recovering the costs
A52: and excludes any amounts already passed through in reference tariffs.
A55: Pre-tax WACC for distribution tariffs
A57: Real Pre-tax WACCD | B57: 0.03671699574

Sheet Prop2022DistTar
B1: ="Tariff Approval - "&'Model update'!B3 -> Tariff Approval - AusNet Services | C1: ="Prop"&'Model update'!B5&"DistTar" -> Prop2022DistTar
B3: ="PROPOSED "&'Model update'!$B$5&" DISTRIBUTION TARIFFS" -> PROPOSED 2022 DISTRIBUTION TARIFFS
B5: Proposed tariff name | C5: Existing name | D5: ="Prop "&'Model update'!$B$5&" Tariff" -> Prop 2022 Tariff | E5: ="Exist "&'Model update'!$B$8&" Tariff" -> Exist 2021 Tariff | F5: ="Actual "&'Model update'!$B$9&" Volumes" -> Actual 2020 Volumes | G5: Prop Tar Revenue | H5: Exist Tar Revenue
B6: Tariff V - SP AusNet Central - Residential | C6: Tariff V - SP AusNet Central - Residential
B8: Fixed Charge | C8: Fixed Charge | D8: 0.4346 | E8: 0.3858 | F8: 560436.7797 | G8: =D8*$F8*365 -> 88901525.92 | H8: =E8*$F8*365 -> 78919026
B9: Peak 0 - 0.1 | C9: Peak 0 - 0.1 | D9: 5.9708 | E9: 6.54 | F9: 5639401.03 | G9: =D9*$F9 -> 33671735.67 | H9: 36881682.74
B10: Peak 0.1 - 0.2 | C10: Peak 0.1 - 0.2 | D10: 3.5987 | E10: 3.9236 | F10: 3976798.042 | G10: 14311303.11 | H10: 15603364.8
B11: Peak 0.2 - 1.4 | C11: Peak 0.2 - 1.4 | D11: 0.6257 | E11: 0.6861 | F11: 6032737.237 | G11: 3774683.689 | H11: 4139061.018
B12: Peak > 1.4 | C12: Peak > 1.4 | D12: 0.562 | E12: 0.6134 | F12: 77726.47 | G12: 43682.27614 | H12: 47677.4167
B13: Off Peak 0 - 0.1 | C13: Off Peak 0 - 0.1 | D13: 2.0239 | E13: 2.2311 | F13: 8025956.373 | G13: 16243733.1 | H13: 17906711.26
B14: Off Peak 0.1 - 0.2 | C14: Off Peak 0.1 - 0.2 | D14: 1.5994 | E14: 1.7844 | F14: 2120662.006 | G14: 3391786.812 | H14: 3784109.284
B15: Off Peak 0.2 - 1.4 | C15: Off Peak 0.2 - 1.4 | D15: 0.613 | E15: 0.6828 | F15: 1265267.435 | G15: 775608.9377 | H15: 863924.6046
B16: Off Peak > 1.4 | C16: Off Peak > 1.4 | D16: 0.2174 | E16: 0.2376 | F16: 78346.264 | G16: 17032.47779 | H16: 18615.07233
B17: Tariff V - SP AusNet Central - Non Residential | C17: Tariff V - SP AusNet Central - Non Residential | F17: =SUM(F9:F16) -> 27216894.86
B19: Fixed Charge | C19: Fixed Charge | D19: 0.4537 | E19: 0.4028 | F19: 10192.87616 | G19: =D19*$F19*365 -> 1687945.388 | H19: =E19*$F19*365 -> 1498577.039
B20: Peak 0 - 0.1 | C20: Peak 0 - 0.1 | D20: 1.0756 | E20: 1.1125 | F20: 88047.202 | G20: =D20*$F20 -> 94703.57047 | H20: 97952.51223
B21: Peak 0.1 - 0.2 | C21: Peak 0.1 - 0.2 | D21: 1.0247 | E21: 1.0593 | F21: 70613.588 | G21: 72357.74362 | H21: 74800.97377
B22: Peak 0.2 - 1.4 | C22: Peak 0.2 - 1.4 | D22: 0.9221 | E22: 0.9474 | F22: 410048.2 | G22: 378105.4452 | H22: 388479.6647
B23: Peak > 1.4 | C23: Peak > 1.4 | D23: 0.7039 | E23: 0.711 | F23: 1063952.846 | G23: 748916.4083 | H23: 756470.4735
B24: Off Peak 0 - 0.1 | C24: Off Peak 0 - 0.1 | D24: 1.0192 | E24: 1.056 | F24: 161925.586 | G24: 165034.5573 | H24: 170993.4188
B25: Off Peak 0.1 - 0.2 | C25: Off Peak 0.1 - 0.2 | D25: 0.7131 | E25: 0.7386 | F25: 113230.273 | G25: 80744.50768 | H25: 83631.87964
B26: Off Peak 0.2 - 1.4 | C26: Off Peak 0.2 - 1.4 | D26: 0.5871 | E26: 0.6104 | F26: 635368.371 | G26: 373024.7706 | H26: 387828.8537
B27: Off Peak > 1.4 | C27: Off Peak > 1.4 | D27: 0.5692 | E27: 0.581 | F27: 1379242.187 | G27: 785064.6528 | H27: 801339.7106
B28: Tariff V - SP AusNet West - Residential | C28: Tariff V - SP AusNet West - Residential | F28: =SUM(F20:F27) -> 3922428.253
B30: Fixed Charge | C30: Fixed Charge | D30: 0.4346 | E30: 0.3858 | F30: 148971.0024 | G30: =D30*$F30*365 -> 23631121.14 | H30: =E30*$F30*365 -> 20977649.64
B31: Peak 0 - 0.1 | C31: Peak 0 - 0.1 | D31: 3.156 | E31: 3.7231 | F31: 1524005.893 | G31: =D31*$F31 -> 4809762.598 | H31: 5674026.34
B32: Peak 0.1 - 0.2 | C32: Peak 0.1 - 0.2 | D32: 2.2725 | E32: 2.6687 | F32: 1138150.608 | G32: 2586447.257 | H32: 3037382.528
B33: Peak 0.2 - 1.4 | C33: Peak 0.2 - 1.4 | D33: 0.7341 | E33: 0.8605 | F33: 1791901.521 | G33: 1315434.907 | H33: 1541931.259
B34: Peak > 1.4 | C34: Peak > 1.4 | D34: 0.7036 | E34: 0.8241 | F34: 16625.278 | G34: 11697.5456 | H34: 13700.8916
B35: Off Peak 0 - 0.1 | C35: Off Peak 0 - 0.1 | D35: 0.9758 | E35: 1.1676 | F35: 2129926.559 | G35: 2078382.336 | H35: 2486902.25
B36: Off Peak 0.1 - 0.2 | C36: Off Peak 0.1 - 0.2 | D36: 0.9145 | E36: 1.0991 | F36: 686541.773 | G36: 627842.4514 | H36: 754578.0627
B37: Off Peak 0.2 - 1.4 | C37: Off Peak 0.2 - 1.4 | D37: 0.5214 | E37: 0.6218 | F37: 489836.938 | G37: 255400.9795 | H37: 304580.608
B38: Off Peak > 1.4 | C38: Off Peak > 1.4 | D38: 0.1029 | E38: 0.1206 | F38: 14567.957 | G38: 1499.042775 | H38: 1756.895614
B39: Tariff V - SP AusNet West - Non Residential | C39: Tariff V - SP AusNet West - Non Residential | F39: =SUM(F31:F38) -> 7791556.527
B41: Fixed Charge | C41: Fixed Charge | D41: 0.4537 | E41: 0.4028 | F41: 6008.46209 | G41: =D41*$F41*365 -> 995004.3264 | H41: =E41*$F41*365 -> 883376.1134
B42: Peak 0 - 0.1 | C42: Peak 0 - 0.1 | D42: 1.6438 | E42: 1.8216 | F42: 46138.148 | G42: =D42*$F42 -> 75841.88768 | H42: 84045.2504
B43: Peak 0.1 - 0.2 | C43: Peak 0.1 - 0.2 | D43: 1.3854 | E43: 1.5341 | F43: 35255.959 | G43: 48843.6056 | H43: 54086.1667
B44: Peak 0.2 - 1.4 | C44: Peak 0.2 - 1.4 | D44: 0.8559 | E44: 0.9406 | F44: 182214.498 | G44: 155957.3888 | H44: 171390.9568
B45: Peak > 1.4 | C45: Peak > 1.4 | D45: 0.3209 | E45: 0.3458 | F45: 382790.315 | G45: 122837.4121 | H45: 132368.8909
B46: Off Peak 0 - 0.1 | C46: Off Peak 0 - 0.1 | D46: 0.7617 | E46: 0.8465 | F46: 76826.113 | G46: 58518.45027 | H46: 65033.30465
B47: Off Peak 0.1 - 0.2 | C47: Off Peak 0.1 - 0.2 | D47: 0.6417 | E47: 0.713 | F47: 48845.392 | G47: 31344.08805 | H47: 34826.7645
B48: Off Peak 0.2 - 1.4 | C48: Off Peak 0.2 - 1.4 | D48: 0.3092 | E48: 0.3458 | F48: 246988.187 | G48: 76368.74742 | H48: 85408.51506
B49: Off Peak > 1.4 | C49: Off Peak > 1.4 | D49: 0.23 | E49: 0.2553 | F49: 402194.768 | G49: 92504.79664 | H49: 102680.3243
B50: Tariff V - Adjoining Central - Residential | C50: Tariff V - Adjoining Central - Residential | F50: =SUM(F42:F49) -> 1421253.38
B52: Fixed Charge | C52: Fixed Charge | D52: 0.4346 | E52: 0.3858 | F52: 1816.436996 | G52: =D52*$F52*365 -> 288139.5843 | H52: =E52*$F52*365 -> 255785.2085
B53: Peak 0 - 0.1 | C53: Peak 0 - 0.1 | D53: 9.7783 | E53: 9.9796 | F53: 16440.452 | G53: =D53*$F53 -> 160759.6718 | H53: 164069.1348
B54: Peak 0.1 - 0.2 | C54: Peak 0.1 - 0.2 | D54: 7.0469 | E54: 7.1813 | F54: 10921.23 | G54: 76960.81569 | H54: 78428.629
B55: Peak 0.2 - 1.4 | C55: Peak 0.2 - 1.4 | D55: 2.51 | E55: 2.5835 | F55: 16257.147 | G55: 40805.43897 | H55: 42000.33927
B56: Peak > 1.4 | C56: Peak > 1.4 | D56: 2.4068 | E56: 2.4602 | F56: 402.613 | G56: 969.0089684 | H56: 990.5085026
B57: Off Peak 0 - 0.1 | C57: Off Peak 0 - 0.1 | D57: 4.3792 | E57: 4.6381 | F57: 21752.272 | G57: 95257.54954 | H57: 100889.2128
B58: Off Peak 0.1 - 0.2 | C58: Off Peak 0.1 - 0.2 | D58: 2.5396 | E58: 2.6201 | F58: 5703.766 | G58: 14485.28413 | H58: 14944.4373
B59: Off Peak 0.2 - 1.4 | C59: Off Peak 0.2 - 1.4 | D59: 2.2098 | E59: 2.3005 | F59: 5116.268 | G59: 11305.92903 | H59: 11769.97453
B60: Off Peak > 1.4 | C60: Off Peak > 1.4 | D60: 2.1251 | E60: 2.1902 | F60: 395.182 | G60: 839.8012682 | H60: 865.5276164
B61: Tariff V - Adjoining Central - Non Residential | C61: Tariff V - Adjoining Central - Non Residential | F61: =SUM(F53:F60) -> 76988.93
B63: Fixed Charge | C63: Fixed Charge | D63: 0.4537 | E63: 0.4028 | F63: 16.77404686 | G63: =D63*$F63*365 -> 2777.790547 | H63: =E63*$F63*365 -> 2466.153917
B64: Peak 0 - 0.1 | C64: Peak 0 - 0.1 | D64: 4.0205 | E64: 4.1747 | F64: 181.835 | G64: =D64*$F64 -> 731.0676175 | H64: 759.1065745
B65: Peak 0.1 - 0.2 | C65: Peak 0.1 - 0.2 | D65: 3.8312 | E65: 3.9757 | F65: 141.354 | G65: 541.5554448 | H65: 561.9810978
B66: Peak 0.2 - 1.4 | C66: Peak 0.2 - 1.4 | D66: 3.6217 | E66: 3.5366 | F66: 634.545 | G66: 2298.131627 | H66: 2244.131847
B67: Peak > 1.4 | C67: Peak > 1.4 | D67: 3.4207 | E67: 3.3579 | F67: 77.842 | G67: 266.2741294 | H67: 261.3856518
B68: Off Peak 0 - 0.1 | C68: Off Peak 0 - 0.1 | D68: 3.7008 | E68: 3.7176 | F68: 274.785 | G68: 1016.924328 | H68: 1021.540716
B69: Off Peak 0.1 - 0.2 | C69: Off Peak 0.1 - 0.2 | D69: 3.5526 | E69: 3.53 | F69: 183.367 | G69: 651.4296042 | H69: 647.28551
B70: Off Peak 0.2 - 1.4 | C70: Off Peak 0.2 - 1.4 | D70: 3.4425 | E70: 3.3582 | F70: 1222.705 | G70: 4209.161962 | H70: 4106.087931
B71: Off Peak > 1.4 | C71: Off Peak > 1.4 | D71: 3.3584 | E71: 3.1979 | F71: 468.757 | G71: 1574.273509 | H71: 1499.03801
B72: Tariff V - Adjoining West - Residential | C72: Tariff V - Adjoining West - Residential | F72: =SUM(F64:F71) -> 3185.19
B74: Fixed Charge | C74: Fixed Charge | D74: 0.4346 | E74: 0.3858 | F74: 11363.5112 | G74: =D74*$F74*365 -> 1802582.418 | H74: =E74*$F74*365 -> 1600175.557
B75: Peak 0 - 0.1 | C75: Peak 0 - 0.1 | D75: 6.8521 | E75: 6.9669 | F75: 115499.504 | G75: =D75*$F75 -> 791414.1514 | H75: =E75*$F75 -> 804673.4944
B76: Peak 0.1 - 0.2 | C76: Peak 0.1 - 0.2 | D76: 5.753 | E76: 5.8393 | F76: 90775.951 | G76: 522234.0461 | H76: 530068.0107
B77: Peak 0.2 - 1.4 | C77: Peak 0.2 - 1.4 | D77: 2.9525 | E77: 3.0125 | F77: 178276.56 | G77: 526361.5434 | H77: 537058.137
B78: Peak > 1.4 | C78: Peak > 1.4 | D78: 2.6482 | E78: 2.6823 | F78: 2598.744 | G78: 6881.993861 | H78: 6970.611031
B79: Off Peak 0 - 0.1 | C79: Off Peak 0 - 0.1 | D79: 4.0662 | E79: 4.2339 | F79: 163484.481 | G79: 664760.5966 | H79: 692176.9441
B80: Off Peak 0.1 - 0.2 | C80: Off Peak 0.1 - 0.2 | D80: 3.0752 | E80: 3.1794 | F80: 62178.348 | G80: 191210.8558 | H80: 197689.8396
B81: Off Peak 0.2 - 1.4 | C81: Off Peak 0.2 - 1.4 | D81: 2.2019 | E81: 2.2713 | F81: 53491.513 | G81: 117782.9625 | H81: 121495.2735
B82: Off Peak > 1.4 | C82: Off Peak > 1.4 | D82: 2.133 | E82: 2.1632 | F82: 4001.698 | G82: 8535.621834 | H82: 8656.473114
B83: Tariff V - Adjoining West - Non Residential | C83: Tariff V - Adjoining West - Non Residential | F83: =SUM(F75:F82) -> 670306.799
B85: Fixed Charge | C85: Fixed Charge | D85: 0.4537 | E85: 0.4028 | F85: 280.1023233 | G85: =D85*$F85*365 -> 46385.0848 | H85: =E85*$F85*365 -> 41181.20378
B86: Peak 0 - 0.1 | C86: Peak 0 - 0.1 | D86: 4.9613 | E86: 4.9333 | F86: 2554.581 | G86: =D86*$F86 -> 12674.04272 | H86: =E86*$F86 -> 12602.51445
B87: Peak 0.1 - 0.2 | C87: Peak 0.1 - 0.2 | D87: 4.657 | E87: 4.6259 | F87: 2128.025 | G87: 9910.212425 | H87: 9844.030848
B88: Peak 0.2 - 1.4 | C88: Peak 0.2 - 1.4 | D88: 3.9999 | E88: 3.8874 | F88: 11241.86 | G88: 44966.31581 | H88: 43701.60656
B89: Peak > 1.4 | C89: Peak > 1.4 | D89: 3.516 | E89: 3.3166 | F89: 19772.989 | G89: 69521.82932 | H89: 65579.09532
B90: Off Peak 0 - 0.1 | C90: Off Peak 0 - 0.1 | D90: 3.8141 | E90: 3.7971 | F90: 4681.94 | G90: 17857.38735 | H90: 17777.79437
B91: Off Peak 0.1 - 0.2 | C91: Off Peak 0.1 - 0.2 | D91: 3.629 | E91: 3.6161 | F91: 3357.369 | G91: 12183.8921 | H91: 12140.58204
B92: Off Peak 0.2 - 1.4 | C92: Off Peak 0.2 - 1.4 | D92: 3.1726 | E92: 3.1371 | F92: 18023.665 | G92: 57181.87958 | H92: 56542.03947
B93: Off Peak > 1.4 | C93: Off Peak > 1.4 | D93: 3.0212 | E93: 2.9534 | F93: 24556.594 | G93: 74190.38179 | H93: 72525.44472
F94: =SUM(F86:F93) -> 86317.023
B95: Tariff M - SP AusNet Central | C95: Tariff M - SP AusNet Central
B96: 0 - 10 | C96: 0 - 10 | D96: 692.8097 | E96: 680.0702 | F96: 167.93 | G96: =D96*$F96 -> 116343.5329 | H96: 114204.1887
B97: 10 - 50 | C97: 10 - 50 | D97: 659.8435 | E97: 647.7102 | F97: 50.95 | G97: 33619.02632 | H97: 33000.83469
B98: > 50 | C98: > 50 | D98: 137.7767 | E98: 135.2432 | F98: 0 | G98: 0 | H98: 0
B100: Tariff M - SP AusNet West | C100: Tariff M - SP AusNet West
B101: 0 - 10 | C101: 0 - 10 | D101: 692.8097 | E101: 680.0702 | F101: 43.45 | G101: =D101*$F101 -> 30102.58146 | H101: 29549.05019
B102: 10 - 50 | C102: 10 - 50 | D102: 659.8435 | E102: 647.7102 | F102: 29.05 | G102: 19168.45368 | H102: 18815.98131
B103: > 50 | C103: > 50 | D103: 137.7767 | E103: 135.2432 | F103: 0 | G103: 0 | H103: 0
B105: Tariff M - Adjoining Central | C105: Tariff M - Adjoining Central
B106: 0 - 10 | C106: 0 - 10 | D106: 692.8097 | E106: 680.0702 | F106: 0 | G106: =D106*$F106 -> 0 | H106: 0
B107: 10 - 50 | C107: 10 - 50 | D107: 659.8435 | E107: 647.7102 | F107: 0 | G107: 0 | H107: 0
B108: > 50 | C108: > 50 | D108: 137.7767 | E108: 135.2432 | F108: 0 | G108: 0 | H108: 0
B110: Tariff M - Adjoining West | C110: Tariff M - Adjoining West
B111: 0 - 10 | C111: 0 - 10 | D111: 692.8097 | E111: 680.0702 | F111: 0 | G111: =D111*$F111 -> 0 | H111: 0
B112: 10 - 50 | C112: 10 - 50 | D112: 659.8435 | E112: 647.7102 | F112: 0 | G112: 0 | H112: 0
B113: > 50 | C113: > 50 | D113: 137.7767 | E113: 135.2432 | F113: 0 | G113: 0 | H113: 0
B116: Tariff D - SP AusNet Central | C116: Tariff D - SP AusNet Central
B117: 0 - 10 | C117: 0 - 10 | D117: 316.0438 | E117: 310.2324 | F117: 1348.75 | G117: =D117*$F117 -> 426264.0753 | H117: 418425.9495
B118: 10 - 50 | C118: 10 - 50 | D118: 300.9966 | E118: 295.4618 | F118: 1489.35 | G118: 448289.2862 | H118: 440046.0318
B119: > 50 | C119: > 50 | D119: 146.1376 | E119: 143.4504 | F119: 3188.85 | G119: =D119*$F119 -> 466010.8858 | H119: =E119*$F119 -> 457441.808
B121: Tariff D - SP AusNet West | C121: Tariff D - SP AusNet West
B122: 0 - 10 | C122: 0 - 10 | D122: 316.0438 | E122: 310.2324 | F122: 522.45 | G122: =D122*$F122 -> 165117.0833 | H122: 162080.9174
B123: 10 - 50 | C123: 10 - 50 | D123: 300.9966 | E123: 295.4618 | F123: 738.31 | G123: 222228.7997 | H123: 218142.4016
B124: > 50 | C124: > 50 | D124: 146.1376 | E124: 143.4504 | F124: 445.56 | G124: 65113.06906 | H124: 63915.76022
B126: Tariff D - Adjoining Central | C126: Tariff D - Adjoining Central
B127: 0 - 10 | C127: 0 - 10 | D127: 316.0438 | E127: 310.2324 | F127: 10 | G127: =D127*$F127 -> 3160.438 | H127: 3102.324
B128: 10 - 50 | C128: 10 - 50 | D128: 300.9966 | E128: 295.4618 | F128: 16.25 | G128: =D128*$F128 -> 4891.19475 | H128: 4801.25425
B129: > 50 | C129: > 50 | D129: 146.1376 | E129: 143.4504 | F129: 0 | G129: 0 | H129: 0
B131: Tariff D - Adjoining West | C131: Tariff D - Adjoining West
B132: 0 - 10 | C132: 0 - 10 | D132: 316.0438 | E132: 310.2324 | F132: 11.22 | G132: =D132*$F132 -> 3546.011436 | H132: 3480.807528
B133: 10 - 50 | C133: 10 - 50 | D133: 300.9966 | E133: 295.4618 | F133: 6.89 | G133: 2073.866574 | H133: 2035.731802
B134: > 50 | C134: > 50 | D134: 146.1376 | E134: 143.4504 | F134: 0 | G134: 0 | H134: 0
B137: Total Revenue | C137: Total Revenue | G137: =SUM(G8:G135) -> 210177951.2 | H137: =SUM(H8:H135) -> 206313182.9

Sheet 2022TarContForm
B1: ="Tariff Approval - "&'Model update'!B3 -> Tariff Approval - AusNet Services | C1: ='Model update'!B5&"TarContForm" -> 2022TarContForm
B3: ='Model update'!$B$5&" TARIFF CONTROL FORMULA" -> 2022 TARIFF CONTROL FORMULA
B6: CPI
B8: ="CPI Sept"&'Model update'!$B$9 -> CPI Sept2020 | C8: ='Model update'!B26 -> 114.4
B9: ="CPI Sept"&'Model update'!$B$8 -> CPI Sept2021 | C9: ='Model update'!B27 -> 118.8
B11: ="CPI "&'Model update'!$B$5 -> CPI 2022 | C11: =(C9/C8-1) -> 0.03846153846
B15: X factor
B17: ="X "&'Model update'!$B$5 -> X 2022 | C17: ='Model update'!B40 -> 0.0189982694
B20: Pass Through Factor (PT)
B22: Pass Through
B23: ="AP (t) "&'Model update'!$B$7 -> AP (t) 2022 | C23: ='Model update'!B50 -> 0
B25: Revenue
B26: ∑∑p(t-1)q(t-2) | C26: =C41 -> 206313182.9
B28: PT' (t-1) | C28: 0
B29: ="PT' "&'Model update'!$B$5 -> PT' 2022 | C29: =IF(C26="",0,(C23)/((1+C11)*(1-C17)*C26)) -> 0
B31: ="PTt "&'Model update'!$B$5 -> PTt 2022 | C31: =((1+C29)/(1+C28))-1 -> 0
B36: ='Model update'!$B$5&" Distribution price control" -> 2022 Distribution price control
B38: Average price movement allowed | C38: =(1+C11)*(1-C17)*(1+C31) -> 1.018732566
B40: Proposed distribution tariff revenue | C40: =IF(Prop2022DistTar!G137=0,"",Prop2022DistTar!G137) -> 210177951.2
B41: Existing distribution tariff revenue | C41: =IF(Prop2022DistTar!H137=0,"",Prop2022DistTar!H137) -> 206313182.9
B42: Average price movement | C42: =IF(C40="","",C40/C41) -> 1.018732532
B44: =IF(C40="","",IF(C38>=C42,"DISTRIBUTION PRICE CONTROL FORMULA COMPLIANT","DISTRIBUTION PRICE CONTROL FORMULA BREACHED")) -> DISTRIBUTION PRICE CONTROL FORMULA COMPLIANT

Sheet 2022RebalContForm
B1: ="Tariff Approval - "&'Model update'!B3 -> Tariff Approval - AusNet Services | C1: ='Model update'!B5&"RebalContForm" -> 2022RebalContForm
B3: ='Model update'!$B$5&" REBALANCING CONTROL FORMULA" -> 2022 REBALANCING CONTROL FORMULA
B6: Rebalancing control
B8: ="CPI "&'Model update'!$B$5 -> CPI 2022 | C8: ='2022TarContForm'!C11 -> 0.03846153846
B9: ="Y "&'Model update'!$B$5 -> Y 2022 | C9: 0.02
B10: ="PTt "&'Model update'!$B$5 -> PTt 2022 | C10: ='2022TarContForm'!C31 -> 0
B11: ="Xt "&'Model update'!$B$5 -> Xt 2022 | C11: ='2022TarContForm'!C17 -> 0.0189982694
B13: Rebalancing control | C13: =(1+C8)*(1+C9)*(1+C10)*(1-C11) -> 1.039107218
B17: Rebalancing control summary
C18: Existing | D18: Proposed | E18: Movement | F18: Assessment
B19: =B39 -> Tariff V - SP AusNet Central - Residential | C19: =C60 -> 158164172.2 | D19: =C61 -> 161131092 | E19: =IF(C19=0,0,D19/C19) -> 1.018758482 | F19: =IF(E19=0,"",IF($C$13<=E19,"Breached","Compliant")) -> Compliant
B20: =B69 -> Tariff V - SP AusNet West - Residential | C20: =C90 -> 34792508.48 | D20: =C91 -> 35317588.26 | E20: 1.015091748 | F20: =IF(E20=0,"",IF($C$13<=E20,"Breached","Compliant")) -> Compliant
B21: =B99 -> Tariff V - Adjoining Central - Residential | C21: =C120 -> 669742.9723 | D21: =C121 -> 689523.0836 | E21: 1.029533884 | F21: Compliant
B22: =B129 -> Tariff V - Adjoining West - Residential | C22: =C150 -> 4498964.34 | D22: =C151 -> 4631764.19 | E22: 1.029517871 | F22: Compliant
B23: =B159 -> Tariff V - SP AusNet Central - Non Residential | C23: =C180 -> 4260074.526 | D23: =C181 -> 4385897.044 | E23: 1.029535286 | F23: Compliant
B24: =B189 -> Tariff V - SP AusNet West - Non Residential | C24: =C210 -> 1613216.287 | D24: =C211 -> 1657220.703 | E24: 1.027277444 | F24: Compliant
B25: =B219 -> Tariff V - Adjoining Central - Non Residential | C25: =C240 -> 13566.71126 | D25: =C241 -> 14066.60877 | E25: 1.036847361 | F25: Compliant
B26: =B249 -> Tariff V - Adjoining West - Non Residential | C26: =C270 -> 331894.3116 | D26: =C271 -> 344871.0259 | E26: =IF(C26=0,0,D26/C26) -> 1.039098936 | F26: =IF(E26=0,"",IF($C$13<=E26,"Breached","Compliant")) -> Compliant
B27: =B279 -> Tariff M - SP AusNet Central | C27: =C294 -> 147205.0234 | D27: =C295 -> 149962.5592 | E27: 1.018732621 | F27: Compliant
B28: =B303 -> Tariff M - SP AusNet West | C28: =C318 -> 48365.0315 | D28: =C319 -> 49271.03514 | E28: 1.018732618 | F28: Compliant
B29: =B327 -> Tariff M - Adjoining Central | C29: =C342 -> 0 | D29: =C343 -> 0 | E29: =IF(C29=0,0,D29/C29) -> 0 | F29: =IF(E29=0,"",IF($C$13<=E29,"Breached","Compliant")) -> 
B30: =B351 -> Tariff M - Adjoining West | C30: =C366 -> 0 | D30: =C367 -> 0 | E30: 0
B31: =B375 -> Tariff D - SP AusNet Central | C31: =C390 -> 1315913.789 | D31: =C391 -> 1340564.247 | E31: =IF(C31=0,0,D31/C31) -> 1.018732578 | F31: =IF(E31=0,"",IF($C$13<=E31,"Breached","Compliant")) -> Compliant
B32: =B399 -> Tariff D - SP AusNet West | C32: =C414 -> 444139.0792 | D32: =C415 -> 452458.9521 | E32: 1.018732585 | F32: Compliant
B33: =B423 -> Tariff D - Adjoining Central | C33: =C438 -> 7903.57825 | D33: =C439 -> 8051.63275 | E33: 1.018732591 | F33: Compliant
B34: =B447 -> Tariff D - Adjoining West | C34: =C462 -> 5516.53933 | D34: =C463 -> 5619.87801 | E34: 1.018732519 | F34: Compliant
C35: =SUM(C19:C34) -> 206313182.9 | D35: =SUM(D19:D34) -> 210177951.2 | E35: 1.018732532
B39: =Prop2022DistTar!B6 -> Tariff V - SP AusNet Central - Residential | C39: 1 | D39: 2 | E39: 3 | F39: 4 | G39: 5 | H39: 6 | I39: 7 | J39: 8 | K39: 9
C40: 1 | D40: 2 | E40: 3 | F40: 4 | G40: 5 | H40: 6 | I40: 7 | J40: 8 | K40: 9
B41: Distribution tariff | C41: Fixed | D41: PkBlk1 | E41: PkBlk2 | F41: PkBlk3 | G41: PkBlk4 | H41: OPkBlk1 | I41: OPkBlk2 | J41: OPkBlk3 | K41: OPkBlk4
B43: ="Existing : "&Prop2022DistTar!C6 -> Existing : Tariff V - SP AusNet Central - Residential | C43: =INDEX(Prop2022DistTar!$E$8:$E$16,C$40) -> 0.3858 | D43: =INDEX(Prop2022DistTar!$E$8:$E$16,D$40) -> 6.54 | E43: =INDEX(Prop2022DistTar!$E$8:$E$16,E$40) -> 3.9236 | F43: =INDEX(Prop2022DistTar!$E$8:$E$16,F$40) -> 0.6861 | G43: =INDEX(Prop2022DistTar!$E$8:$E$16,G$40) -> 0.6134 | H43: =INDEX(Prop2022DistTar!$E$8:$E$16,H$40) -> 2.2311 | I43: =INDEX(Prop2022DistTar!$E$8:$E$16,I$40) -> 1.7844 | J43: =INDEX(Prop2022DistTar!$E$8:$E$16,J$40) -> 0.6828 | K43: =INDEX(Prop2022DistTar!$E$8:$E$16,K$40) -> 0.2376
B45: ="Proposed : "&B39 -> Proposed : Tariff V - SP AusNet Central - Residential | C45: =INDEX(Prop2022DistTar!$D$8:$D$16,C$39) -> 0.4346 | D45: =INDEX(Prop2022DistTar!$D$8:$D$16,D$39) -> 5.9708 | E45: =INDEX(Prop2022DistTar!$D$8:$D$16,E$39) -> 3.5987 | F45: =INDEX(Prop2022DistTar!$D$8:$D$16,F$39) -> 0.6257 | G45: =INDEX(Prop2022DistTar!$D$8:$D$16,G$39) -> 0.562 | H45: =INDEX(Prop2022DistTar!$D$8:$D$16,H$39) -> 2.0239 | I45: =INDEX(Prop2022DistTar!$D$8:$D$16,I$39) -> 1.5994 | J45: =INDEX(Prop2022DistTar!$D$8:$D$16,J$39) -> 0.613 | K45: =INDEX(Prop2022DistTar!$D$8:$D$16,K$39) -> 0.2174
B47: Distribution volumes (actual) | C47: =C$41 -> Fixed | D47: =D$41 -> PkBlk1 | E47: PkBlk2 | F47: PkBlk3 | G47: PkBlk4 | H47: OPkBlk1 | I47: OPkBlk2 | J47: OPkBlk3 | K47: OPkBlk4
B49: =B43 -> Existing : Tariff V - SP AusNet Central - Residential | C49: =INDEX(Prop2022DistTar!$F$8:$F$16,C$39) -> 560436.7797 | D49: =INDEX(Prop2022DistTar!$F$8:$F$16,D$39) -> 5639401.03 | E49: =INDEX(Prop2022DistTar!$F$8:$F$16,E$39) -> 3976798.042 | F49: =INDEX(Prop2022DistTar!$F$8:$F$16,F$39) -> 6032737.237 | G49: =INDEX(Prop2022DistTar!$F$8:$F$16,G$39) -> 77726.47 | H49: =INDEX(Prop2022DistTar!$F$8:$F$16,H$39) -> 8025956.373 | I49: =INDEX(Prop2022DistTar!$F$8:$F$16,I$39) -> 2120662.006 | J49: =INDEX(Prop2022DistTar!$F$8:$F$16,J$39) -> 1265267.435 | K49: =INDEX(Prop2022DistTar!$F$8:$F$16,K$39) -> 78346.264
B51: =B45 -> Proposed : Tariff V - SP AusNet Central - Residential | C51: =INDEX(Prop2022DistTar!$F$8:$F$16,C$39) -> 560436.7797 | D51: =INDEX(Prop2022DistTar!$F$8:$F$16,D$39) -> 5639401.03 | E51: =INDEX(Prop2022DistTar!$F$8:$F$16,E$39) -> 3976798.042 | F51: =INDEX(Prop2022DistTar!$F$8:$F$16,F$39) -> 6032737.237 | G51: =INDEX(Prop2022DistTar!$F$8:$F$16,G$39) -> 77726.47 | H51: =INDEX(Prop2022DistTar!$F$8:$F$16,H$39) -> 8025956.373 | I51: =INDEX(Prop2022DistTar!$F$8:$F$16,I$39) -> 2120662.006 | J51: =INDEX(Prop2022DistTar!$F$8:$F$16,J$39) -> 1265267.435 | K51: =INDEX(Prop2022DistTar!$F$8:$F$16,K$39) -> 78346.264
B53: Distribution revenue | C53: =C$41 -> Fixed | D53: PkBlk1 | E53: PkBlk2 | F53: PkBlk3 | G53: PkBlk4 | H53: OPkBlk1 | I53: OPkBlk2 | J53: OPkBlk3 | K53: OPkBlk4
B55: =B49 -> Existing : Tariff V - SP AusNet Central - Residential | C55: =INDEX(Prop2022DistTar!$H$8:$H$16,C$40) -> 78919026 | D55: =INDEX(Prop2022DistTar!$H$8:$H$16,D$40) -> 36881682.74 | E55: =INDEX(Prop2022DistTar!$H$8:$H$16,E$40) -> 15603364.8 | F55: =INDEX(Prop2022DistTar!$H$8:$H$16,F$40) -> 4139061.018 | G55: =INDEX(Prop2022DistTar!$H$8:$H$16,G$40) -> 47677.4167 | H55: =INDEX(Prop2022DistTar!$H$8:$H$16,H$40) -> 17906711.26 | I55: =INDEX(Prop2022DistTar!$H$8:$H$16,I$40) -> 3784109.284 | J55: =INDEX(Prop2022DistTar!$H$8:$H$16,J$40) -> 863924.6046 | K55: =INDEX(Prop2022DistTar!$H$8:$H$16,K$40) -> 18615.07233
B57: =B51 -> Proposed : Tariff V - SP AusNet Central - Residential | C57: =INDEX(Prop2022DistTar!$G$8:$G$16,C$39) -> 88901525.92 | D57: =INDEX(Prop2022DistTar!$G$8:$G$16,D$39) -> 33671735.67 | E57: =INDEX(Prop2022DistTar!$G$8:$G$16,E$39) -> 14311303.11 | F57: =INDEX(Prop2022DistTar!$G$8:$G$16,F$39) -> 3774683.689 | G57: =INDEX(Prop2022DistTar!$G$8:$G$16,G$39) -> 43682.27614 | H57: =INDEX(Prop2022DistTar!$G$8:$G$16,H$39) -> 16243733.1 | I57: =INDEX(Prop2022DistTar!$G$8:$G$16,I$39) -> 3391786.812 | J57: =INDEX(Prop2022DistTar!$G$8:$G$16,J$39) -> 775608.9377 | K57: =INDEX(Prop2022DistTar!$G$8:$G$16,K$39) -> 17032.47779
B59: Revenue | C59: Total
B60: =B55 -> Existing : Tariff V - SP AusNet Central - Residential | C60: =SUM(C55:K55) -> 158164172.2
B61: =B57 -> Proposed : Tariff V - SP AusNet Central - Residential | C61: =SUM(C57:K57) -> 161131092
B63: Average price movement | C63: =IF(C61=0,"",C61/C60) -> 1.018758482
B65: =IF(C63="","",IF(C63<=$C$13,"REBALANCING CONTROL COMPLIANT","REBALANCING CONTROL BREACHED")) -> REBALANCING CONTROL COMPLIANT
B69: =Prop2022DistTar!B28 -> Tariff V - SP AusNet West - Residential | C69: 1 | D69: 2 | E69: 3 | F69: 4 | G69: 5 | H69: 6 | I69: 7 | J69: 8 | K69: 9
C70: 1 | D70: 2 | E70: 3 | F70: 4 | G70: 5 | H70: 6 | I70: 7 | J70: 8 | K70: 9
B71: Distribution tariff | C71: Fixed | D71: PkBlk1 | E71: PkBlk2 | F71: PkBlk3 | G71: PkBlk4 | H71: OPkBlk1 | I71: OPkBlk2 | J71: OPkBlk3 | K71: OPkBlk4
B73: ="Existing : "&Prop2022DistTar!C28 -> Existing : Tariff V - SP AusNet West - Residential | C73: =INDEX(Prop2022DistTar!$E$30:$E$38,C$40) -> 0.3858 | D73: =INDEX(Prop2022DistTar!$E$30:$E$38,D$40) -> 3.7231 | E73: =INDEX(Prop2022DistTar!$E$30:$E$38,E$40) -> 2.6687 | F73: =INDEX(Prop2022DistTar!$E$30:$E$38,F$40) -> 0.8605 | G73: =INDEX(Prop2022DistTar!$E$30:$E$38,G$40) -> 0.8241 | H73: =INDEX(Prop2022DistTar!$E$30:$E$38,H$40) -> 1.1676 | I73: =INDEX(Prop2022DistTar!$E$30:$E$38,I$40) -> 1.0991 | J73: =INDEX(Prop2022DistTar!$E$30:$E$38,J$40) -> 0.6218 | K73: =INDEX(Prop2022DistTar!$E$30:$E$38,K$40) -> 0.1206
B75: ="Proposed : "&B69 -> Proposed : Tariff V - SP AusNet West - Residential | C75: =INDEX(Prop2022DistTar!$D$30:$D$38,C$39) -> 0.4346 | D75: =INDEX(Prop2022DistTar!$D$30:$D$38,D$39) -> 3.156 | E75: =INDEX(Prop2022DistTar!$D$30:$D$38,E$39) -> 2.2725 | F75: =INDEX(Prop2022DistTar!$D$30:$D$38,F$39) -> 0.7341 | G75: =INDEX(Prop2022DistTar!$D$30:$D$38,G$39) -> 0.7036 | H75: =INDEX(Prop2022DistTar!$D$30:$D$38,H$39) -> 0.9758 | I75: =INDEX(Prop2022DistTar!$D$30:$D$38,I$39) -> 0.9145 | J75: =INDEX(Prop2022DistTar!$D$30:$D$38,J$39) -> 0.5214 | K75: =INDEX(Prop2022DistTar!$D$30:$D$38,K$39) -> 0.1029
B77: Distribution volumes (actual) | C77: Fixed | D77: PkBlk1 | E77: PkBlk2 | F77: PkBlk3 | G77: PkBlk4 | H77: PkBlk5 | I77: Shd1Blk1 | J77: Shd1Blk2 | K77: Shd1Blk3
B79: =B73 -> Existing : Tariff V - SP AusNet West - Residential | C79: =INDEX(Prop2022DistTar!$F$30:$F$38,C$39) -> 148971.0024 | D79: =INDEX(Prop2022DistTar!$F$30:$F$38,D$39) -> 1524005.893 | E79: =INDEX(Prop2022DistTar!$F$30:$F$38,E$39) -> 1138150.608 | F79: =INDEX(Prop2022DistTar!$F$30:$F$38,F$39) -> 1791901.521 | G79: =INDEX(Prop2022DistTar!$F$30:$F$38,G$39) -> 16625.278 | H79: =INDEX(Prop2022DistTar!$F$30:$F$38,H$39) -> 2129926.559 | I79: =INDEX(Prop2022DistTar!$F$30:$F$38,I$39) -> 686541.773 | J79: =INDEX(Prop2022DistTar!$F$30:$F$38,J$39) -> 489836.938 | K79: =INDEX(Prop2022DistTar!$F$30:$F$38,K$39) -> 14567.957
B81: =B75 -> Proposed : Tariff V - SP AusNet West - Residential | C81: =INDEX(Prop2022DistTar!$F$30:$F$38,C$39) -> 148971.0024 | D81: =INDEX(Prop2022DistTar!$F$30:$F$38,D$39) -> 1524005.893 | E81: =INDEX(Prop2022DistTar!$F$30:$F$38,E$39) -> 1138150.608 | F81: =INDEX(Prop2022DistTar!$F$30:$F$38,F$39) -> 1791901.521 | G81: =INDEX(Prop2022DistTar!$F$30:$F$38,G$39) -> 16625.278 | H81: =INDEX(Prop2022DistTar!$F$30:$F$38,H$39) -> 2129926.559 | I81: =INDEX(Prop2022DistTar!$F$30:$F$38,I$39) -> 686541.773 | J81: =INDEX(Prop2022DistTar!$F$30:$F$38,J$39) -> 489836.938 | K81: =INDEX(Prop2022DistTar!$F$30:$F$38,K$39) -> 14567.957
B83: Distribution revenue | C83: Fixed | D83: PkBlk1 | E83: PkBlk2 | F83: PkBlk3 | G83: PkBlk4 | H83: PkBlk5 | I83: Shd1Blk1 | J83: Shd1Blk2 | K83: Shd1Blk3
B85: =B79 -> Existing : Tariff V - SP AusNet West - Residential | C85: =INDEX(Prop2022DistTar!$H$30:$H$38,C$40) -> 20977649.64 | D85: =INDEX(Prop2022DistTar!$H$30:$H$38,D$40) -> 5674026.34 | E85: =INDEX(Prop2022DistTar!$H$30:$H$38,E$40) -> 3037382.528 | F85: =INDEX(Prop2022DistTar!$H$30:$H$38,F$40) -> 1541931.259 | G85: =INDEX(Prop2022DistTar!$H$30:$H$38,G$40) -> 13700.8916 | H85: =INDEX(Prop2022DistTar!$H$30:$H$38,H$40) -> 2486902.25 | I85: =INDEX(Prop2022DistTar!$H$30:$H$38,I$40) -> 754578.0627 | J85: =INDEX(Prop2022DistTar!$H$30:$H$38,J$40) -> 304580.608 | K85: =INDEX(Prop2022DistTar!$H$30:$H$38,K$40) -> 1756.895614
B87: =B81 -> Proposed : Tariff V - SP AusNet West - Residential | C87: =INDEX(Prop2022DistTar!$G$30:$G$38,C$39) -> 23631121.14 | D87: =INDEX(Prop2022DistTar!$G$30:$G$38,D$39) -> 4809762.598 | E87: =INDEX(Prop2022DistTar!$G$30:$G$38,E$39) -> 2586447.257 | F87: =INDEX(Prop2022DistTar!$G$30:$G$38,F$39) -> 1315434.907 | G87: =INDEX(Prop2022DistTar!$G$30:$G$38,G$39) -> 11697.5456 | H87: =INDEX(Prop2022DistTar!$G$30:$G$38,H$39) -> 2078382.336 | I87: =INDEX(Prop2022DistTar!$G$30:$G$38,I$39) -> 627842.4514 | J87: =INDEX(Prop2022DistTar!$G$30:$G$38,J$39) -> 255400.9795 | K87: =INDEX(Prop2022DistTar!$G$30:$G$38,K$39) -> 1499.042775
B89: Revenue | C89: Total
B90: =B85 -> Existing : Tariff V - SP AusNet West - Residential | C90: =SUM(C85:K85) -> 34792508.48
B91: =B87 -> Proposed : Tariff V - SP AusNet West - Residential | C91: =SUM(C87:K87) -> 35317588.26
B93: Average price movement | C93: =IF(C91=0,"",C91/C90) -> 1.015091748
B95: =IF(C93="","",IF(C93<=$C$13,"REBALANCING CONTROL COMPLIANT","REBALANCING CONTROL BREACHED")) -> REBALANCING CONTROL COMPLIANT
B99: =Prop2022DistTar!B50 -> Tariff V - Adjoining Central - Residential | C99: 1 | D99: 2 | E99: 3 | F99: 4 | G99: 5 | H99: 6 | I99: 7 | J99: 8 | K99: 9
C100: 1 | D100: 2 | E100: 3 | F100: 4 | G100: 5 | H100: 6 | I100: 7 | J100: 8 | K100: 9
B101: Distribution tariff | C101: Fixed | D101: PkBlk1 | E101: PkBlk2 | F101: PkBlk3 | G101: PkBlk4 | H101: OPkBlk1 | I101: OPkBlk2 | J101: OPkBlk3 | K101: OPkBlk4
B103: ="Existing : "&Prop2022DistTar!C50 -> Existing : Tariff V - Adjoining Central - Residential | C103: =INDEX(Prop2022DistTar!$E$52:$E$60,C$40) -> 0.3858 | D103: =INDEX(Prop2022DistTar!$E$52:$E$60,D$40) -> 9.9796 | E103: =INDEX(Prop2022DistTar!$E$52:$E$60,E$40) -> 7.1813 | F103: =INDEX(Prop2022DistTar!$E$52:$E$60,F$40) -> 2.5835 | G103: =INDEX(Prop2022DistTar!$E$52:$E$60,G$40) -> 2.4602 | H103: =INDEX(Prop2022DistTar!$E$52:$E$60,H$40) -> 4.6381 | I103: =INDEX(Prop2022DistTar!$E$52:$E$60,I$40) -> 2.6201 | J103: =INDEX(Prop2022DistTar!$E$52:$E$60,J$40) -> 2.3005 | K103: =INDEX(Prop2022DistTar!$E$52:$E$60,K$40) -> 2.1902
B105: ="Proposed : "&B99 -> Proposed : Tariff V - Adjoining Central - Residential | C105: =INDEX(Prop2022DistTar!$D$52:$D$60,C$39) -> 0.4346 | D105: =INDEX(Prop2022DistTar!$D$52:$D$60,D$39) -> 9.7783 | E105: =INDEX(Prop2022DistTar!$D$52:$D$60,E$39) -> 7.0469 | F105: =INDEX(Prop2022DistTar!$D$52:$D$60,F$39) -> 2.51 | G105: =INDEX(Prop2022DistTar!$D$52:$D$60,G$39) -> 2.4068 | H105: =INDEX(Prop2022DistTar!$D$52:$D$60,H$39) -> 4.3792 | I105: =INDEX(Prop2022DistTar!$D$52:$D$60,I$39) -> 2.5396 | J105: =INDEX(Prop2022DistTar!$D$52:$D$60,J$39) -> 2.2098 | K105: =INDEX(Prop2022DistTar!$D$52:$D$60,K$39) -> 2.1251
B107: Distribution volumes (actual) | C107: Fixed | D107: PkBlk1 | E107: PkBlk2 | F107: PkBlk3 | G107: PkBlk4 | H107: PkBlk5 | I107: Shd1Blk1 | J107: Shd1Blk2 | K107: Shd1Blk3
B109: =B103 -> Existing : Tariff V - Adjoining Central - Residential | C109: =INDEX(Prop2022DistTar!$F$52:$F$60,C$39) -> 1816.436996 | D109: =INDEX(Prop2022DistTar!$F$52:$F$60,D$39) -> 16440.452 | E109: =INDEX(Prop2022DistTar!$F$52:$F$60,E$39) -> 10921.23 | F109: =INDEX(Prop2022DistTar!$F$52:$F$60,F$39) -> 16257.147 | G109: =INDEX(Prop2022DistTar!$F$52:$F$60,G$39) -> 402.613 | H109: =INDEX(Prop2022DistTar!$F$52:$F$60,H$39) -> 21752.272 | I109: =INDEX(Prop2022DistTar!$F$52:$F$60,I$39) -> 5703.766 | J109: =INDEX(Prop2022DistTar!$F$52:$F$60,J$39) -> 5116.268 | K109: =INDEX(Prop2022DistTar!$F$52:$F$60,K$39) -> 395.182
B111: =B105 -> Proposed : Tariff V - Adjoining Central - Residential | C111: =INDEX(Prop2022DistTar!$F$52:$F$60,C$39) -> 1816.436996 | D111: =INDEX(Prop2022DistTar!$F$52:$F$60,D$39) -> 16440.452 | E111: =INDEX(Prop2022DistTar!$F$52:$F$60,E$39) -> 10921.23 | F111: =INDEX(Prop2022DistTar!$F$52:$F$60,F$39) -> 16257.147 | G111: =INDEX(Prop2022DistTar!$F$52:$F$60,G$39) -> 402.613 | H111: =INDEX(Prop2022DistTar!$F$52:$F$60,H$39) -> 21752.272 | I111: =INDEX(Prop2022DistTar!$F$52:$F$60,I$39) -> 5703.766 | J111: =INDEX(Prop2022DistTar!$F$52:$F$60,J$39) -> 5116.268 | K111: =INDEX(Prop2022DistTar!$F$52:$F$60,K$39) -> 395.182
B113: Distribution revenue | C113: Fixed | D113: PkBlk1 | E113: PkBlk2 | F113: PkBlk3 | G113: PkBlk4 | H113: PkBlk5 | I113: Shd1Blk1 | J113: Shd1Blk2 | K113: Shd1Blk3
B115: =B109 -> Existing : Tariff V - Adjoining Central - Residential | C115: =INDEX(Prop2022DistTar!$H$52:$H$60,C$40) -> 255785.2085 | D115: =INDEX(Prop2022DistTar!$H$52:$H$60,D$40) -> 164069.1348 | E115: =INDEX(Prop2022DistTar!$H$52:$H$60,E$40) -> 78428.629 | F115: =INDEX(Prop2022DistTar!$H$52:$H$60,F$40) -> 42000.33927 | G115: =INDEX(Prop2022DistTar!$H$52:$H$60,G$40) -> 990.5085026 | H115: =INDEX(Prop2022DistTar!$H$52:$H$60,H$40) -> 100889.2128 | I115: =INDEX(Prop2022DistTar!$H$52:$H$60,I$40) -> 14944.4373 | J115: =INDEX(Prop2022DistTar!$H$52:$H$60,J$40) -> 11769.97453 | K115: =INDEX(Prop2022DistTar!$H$52:$H$60,K$40) -> 865.5276164
B117: =B111 -> Proposed : Tariff V - Adjoining Central - Residential | C117: =INDEX(Prop2022DistTar!$G$52:$G$60,C$39) -> 288139.5843 | D117: =INDEX(Prop2022DistTar!$G$52:$G$60,D$39) -> 160759.6718 | E117: =INDEX(Prop2022DistTar!$G$52:$G$60,E$39) -> 76960.81569 | F117: =INDEX(Prop2022DistTar!$G$52:$G$60,F$39) -> 40805.43897 | G117: =INDEX(Prop2022DistTar!$G$52:$G$60,G$39) -> 969.0089684 | H117: =INDEX(Prop2022DistTar!$G$52:$G$60,H$39) -> 95257.54954 | I117: =INDEX(Prop2022DistTar!$G$52:$G$60,I$39) -> 14485.28413 | J117: =INDEX(Prop2022DistTar!$G$52:$G$60,J$39) -> 11305.92903 | K117: =INDEX(Prop2022DistTar!$G$52:$G$60,K$39) -> 839.8012682
B119: Revenue | C119: Total
B120: =B115 -> Existing : Tariff V - Adjoining Central - Residential | C120: =SUM(C115:K115) -> 669742.9723
B121: =B117 -> Proposed : Tariff V - Adjoining Central - Residential | C121: =SUM(C117:K117) -> 689523.0836
B123: Average price movement | C123: =IF(C121=0,"",C121/C120) -> 1.029533884
B125: =IF(C123="","",IF(C123<=$C$13,"REBALANCING CONTROL COMPLIANT","REBALANCING CONTROL BREACHED")) -> REBALANCING CONTROL COMPLIANT
B129: =Prop2022DistTar!B72 -> Tariff V - Adjoining West - Residential | C129: 1 | D129: 2 | E129: 3 | F129: 4 | G129: 5 | H129: 6 | I129: 7 | J129: 8 | K129: 9
C130: 1 | D130: 2 | E130: 3 | F130: 4 | G130: 5 | H130: 6 | I130: 7 | J130: 8 | K130: 9
B131: Distribution tariff | C131: Fixed | D131: PkBlk1 | E131: PkBlk2 | F131: PkBlk3 | G131: PkBlk4 | H131: OPkBlk1 | I131: OPkBlk2 | J131: OPkBlk3 | K131: OPkBlk4
B133: ="Existing : "&Prop2022DistTar!C72 -> Existing : Tariff V - Adjoining West - Residential | C133: =INDEX(Prop2022DistTar!$E$74:$E$82,C$40) -> 0.3858 | D133: =INDEX(Prop2022DistTar!$E$74:$E$82,D$40) -> 6.9669 | E133: =INDEX(Prop2022DistTar!$E$74:$E$82,E$40) -> 5.8393 | F133: =INDEX(Prop2022DistTar!$E$74:$E$82,F$40) -> 3.0125 | G133: =INDEX(Prop2022DistTar!$E$74:$E$82,G$40) -> 2.6823 | H133: =INDEX(Prop2022DistTar!$E$74:$E$82,H$40) -> 4.2339 | I133: =INDEX(Prop2022DistTar!$E$74:$E$82,I$40) -> 3.1794 | J133: =INDEX(Prop2022DistTar!$E$74:$E$82,J$40) -> 2.2713 | K133: =INDEX(Prop2022DistTar!$E$74:$E$82,K$40) -> 2.1632
B135: ="Proposed : "&B129 -> Proposed : Tariff V - Adjoining West - Residential | C135: =INDEX(Prop2022DistTar!$D$74:$D$82,C$39) -> 0.4346 | D135: =INDEX(Prop2022DistTar!$D$74:$D$82,D$39) -> 6.8521 | E135: =INDEX(Prop2022DistTar!$D$74:$D$82,E$39) -> 5.753 | F135: =INDEX(Prop2022DistTar!$D$74:$D$82,F$39) -> 2.9525 | G135: =INDEX(Prop2022DistTar!$D$74:$D$82,G$39) -> 2.6482 | H135: =INDEX(Prop2022DistTar!$D$74:$D$82,H$39) -> 4.0662 | I135: =INDEX(Prop2022DistTar!$D$74:$D$82,I$39) -> 3.0752 | J135: =INDEX(Prop2022DistTar!$D$74:$D$82,J$39) -> 2.2019 | K135: =INDEX(Prop2022DistTar!$D$74:$D$82,K$39) -> 2.133
B137: Distribution volumes (actual) | C137: Fixed | D137: PkBlk1 | E137: PkBlk2 | F137: PkBlk3 | G137: PkBlk4 | H137: PkBlk5 | I137: Shd1Blk1 | J137: Shd1Blk2 | K137: Shd1Blk3
B139: =B133 -> Existing : Tariff V - Adjoining West - Residential | C139: =INDEX(Prop2022DistTar!$F$74:$F$82,C$39) -> 11363.5112 | D139: =INDEX(Prop2022DistTar!$F$74:$F$82,D$39) -> 115499.504 | E139: =INDEX(Prop2022DistTar!$F$74:$F$82,E$39) -> 90775.951 | F139: =INDEX(Prop2022DistTar!$F$74:$F$82,F$39) -> 178276.56 | G139: =INDEX(Prop2022DistTar!$F$74:$F$82,G$39) -> 2598.744 | H139: =INDEX(Prop2022DistTar!$F$74:$F$82,H$39) -> 163484.481 | I139: =INDEX(Prop2022DistTar!$F$74:$F$82,I$39) -> 62178.348 | J139: =INDEX(Prop2022DistTar!$F$74:$F$82,J$39) -> 53491.513 | K139: =INDEX(Prop2022DistTar!$F$74:$F$82,K$39) -> 4001.698
B141: =B135 -> Proposed : Tariff V - Adjoining West - Residential | C141: =INDEX(Prop2022DistTar!$F$74:$F$82,C$39) -> 11363.5112 | D141: =INDEX(Prop2022DistTar!$F$74:$F$82,D$39) -> 115499.504 | E141: =INDEX(Prop2022DistTar!$F$74:$F$82,E$39) -> 90775.951 | F141: =INDEX(Prop2022DistTar!$F$74:$F$82,F$39) -> 178276.56 | G141: =INDEX(Prop2022DistTar!$F$74:$F$82,G$39) -> 2598.744 | H141: =INDEX(Prop2022DistTar!$F$74:$F$82,H$39) -> 163484.481 | I141: =INDEX(Prop2022DistTar!$F$74:$F$82,I$39) -> 62178.348 | J141: =INDEX(Prop2022DistTar!$F$74:$F$82,J$39) -> 53491.513 | K141: =INDEX(Prop2022DistTar!$F$74:$F$82,K$39) -> 4001.698
B143: Distribution revenue | C143: Fixed | D143: PkBlk1 | E143: PkBlk2 | F143: PkBlk3 | G143: PkBlk4 | H143: PkBlk5 | I143: Shd1Blk1 | J143: Shd1Blk2 | K143: Shd1Blk3
B145: =B139 -> Existing : Tariff V - Adjoining West - Residential | C145: =INDEX(Prop2022DistTar!$H$74:$H$82,C$40) -> 1600175.557 | D145: =INDEX(Prop2022DistTar!$H$74:$H$82,D$40) -> 804673.4944 | E145: =INDEX(Prop2022DistTar!$H$74:$H$82,E$40) -> 530068.0107 | F145: =INDEX(Prop2022DistTar!$H$74:$H$82,F$40) -> 537058.137 | G145: =INDEX(Prop2022DistTar!$H$74:$H$82,G$40) -> 6970.611031 | H145: =INDEX(Prop2022DistTar!$H$74:$H$82,H$40) -> 692176.9441 | I145: =INDEX(Prop2022DistTar!$H$74:$H$82,I$40) -> 197689.8396 | J145: =INDEX(Prop2022DistTar!$H$74:$H$82,J$40) -> 121495.2735 | K145: =INDEX(Prop2022DistTar!$H$74:$H$82,K$40) -> 8656.473114
B147: =B141 -> Proposed : Tariff V - Adjoining West - Residential | C147: =INDEX(Prop2022DistTar!$G$74:$G$82,C$39) -> 1802582.418 | D147: =INDEX(Prop2022DistTar!$G$74:$G$82,D$39) -> 791414.1514 | E147: =INDEX(Prop2022DistTar!$G$74:$G$82,E$39) -> 522234.0461 | F147: =INDEX(Prop2022DistTar!$G$74:$G$82,F$39) -> 526361.5434 | G147: =INDEX(Prop2022DistTar!$G$74:$G$82,G$39) -> 6881.993861 | H147: =INDEX(Prop2022DistTar!$G$74:$G$82,H$39) -> 664760.5966 | I147: =INDEX(Prop2022DistTar!$G$74:$G$82,I$39) -> 191210.8558 | J147: =INDEX(Prop2022DistTar!$G$74:$G$82,J$39) -> 117782.9625 | K147: =INDEX(Prop2022DistTar!$G$74:$G$82,K$39) -> 8535.621834
B149: Revenue | C149: Total
B150: =B145 -> Existing : Tariff V - Adjoining West - Residential | C150: =SUM(C145:K145) -> 4498964.34
B151: =B147 -> Proposed : Tariff V - Adjoining West - Residential | C151: =SUM(C147:K147) -> 4631764.19
B153: Average price movement | C153: =IF(C151=0,"",C151/C150) -> 1.029517871
B155: =IF(C153="","",IF(C153<=$C$13,"REBALANCING CONTROL COMPLIANT","REBALANCING CONTROL BREACHED")) -> REBALANCING CONTROL COMPLIANT
B159: =Prop2022DistTar!B17 -> Tariff V - SP AusNet Central - Non Residential | C159: 1 | D159: 2 | E159: 3 | F159: 4 | G159: 5
C160: 1 | D160: 2 | E160: 3 | F160: 4 | G160: 5 | H160: 6 | I160: 7 | J160: 8 | K160: 9
B161: Distribution tariff | C161: Fixed | D161: PkBlk1 | E161: PkBlk2 | F161: PkBlk3 | G161: PkBlk4 | H161: OPkBlk1 | I161: OPkBlk2 | J161: OPkBlk3 | K161: OPkBlk4
B163: ="Existing : "&Prop2022DistTar!C17 -> Existing : Tariff V - SP AusNet Central - Non Residential | C163: =INDEX(Prop2022DistTar!$E$19:$E$27,C$40) -> 0.4028 | D163: =INDEX(Prop2022DistTar!$E$19:$E$27,D$40) -> 1.1125 | E163: =INDEX(Prop2022DistTar!$E$19:$E$27,E$40) -> 1.0593 | F163: =INDEX(Prop2022DistTar!$E$19:$E$27,F$40) -> 0.9474 | G163: =INDEX(Prop2022DistTar!$E$19:$E$27,G$40) -> 0.711 | H163: =INDEX(Prop2022DistTar!$E$19:$E$27,H$40) -> 1.056 | I163: =INDEX(Prop2022DistTar!$E$19:$E$27,I$40) -> 0.7386 | J163: =INDEX(Prop2022DistTar!$E$19:$E$27,J$40) -> 0.6104 | K163: =INDEX(Prop2022DistTar!$E$19:$E$27,K$40) -> 0.581
B165: ="Proposed : "&B159 -> Proposed : Tariff V - SP AusNet Central - Non Residential | C165: =INDEX(Prop2022DistTar!$D$19:$D$27,C$39) -> 0.4537 | D165: =INDEX(Prop2022DistTar!$D$19:$D$27,D$39) -> 1.0756 | E165: =INDEX(Prop2022DistTar!$D$19:$D$27,E$39) -> 1.0247 | F165: =INDEX(Prop2022DistTar!$D$19:$D$27,F$39) -> 0.9221 | G165: =INDEX(Prop2022DistTar!$D$19:$D$27,G$39) -> 0.7039 | H165: =INDEX(Prop2022DistTar!$D$19:$D$27,H$39) -> 1.0192 | I165: =INDEX(Prop2022DistTar!$D$19:$D$27,I$39) -> 0.7131 | J165: =INDEX(Prop2022DistTar!$D$19:$D$27,J$39) -> 0.5871 | K165: =INDEX(Prop2022DistTar!$D$19:$D$27,K$39) -> 0.5692
B167: Distribution volumes (actual) | C167: Fixed | D167: PkBlk1 | E167: PkBlk2 | F167: PkBlk3 | G167: PkBlk4 | H167: PkBlk5 | I167: Shd1Blk1 | J167: Shd1Blk2 | K167: Shd1Blk3
B169: =B163 -> Existing : Tariff V - SP AusNet Central - Non Residential | C169: =INDEX(Prop2022DistTar!$F$19:$F$27,C$39) -> 10192.87616 | D169: =INDEX(Prop2022DistTar!$F$19:$F$27,D$39) -> 88047.202 | E169: =INDEX(Prop2022DistTar!$F$19:$F$27,E$39) -> 70613.588 | F169: =INDEX(Prop2022DistTar!$F$19:$F$27,F$39) -> 410048.2 | G169: =INDEX(Prop2022DistTar!$F$19:$F$27,G$39) -> 1063952.846 | H169: =INDEX(Prop2022DistTar!$F$19:$F$27,H$39) -> 161925.586 | I169: =INDEX(Prop2022DistTar!$F$19:$F$27,I$39) -> 113230.273 | J169: =INDEX(Prop2022DistTar!$F$19:$F$27,J$39) -> 635368.371 | K169: =INDEX(Prop2022DistTar!$F$19:$F$27,K$39) -> 1379242.187
B171: =B165 -> Proposed : Tariff V - SP AusNet Central - Non Residential | C171: =INDEX(Prop2022DistTar!$F$19:$F$27,C$39) -> 10192.87616 | D171: =INDEX(Prop2022DistTar!$F$19:$F$27,D$39) -> 88047.202 | E171: =INDEX(Prop2022DistTar!$F$19:$F$27,E$39) -> 70613.588 | F171: =INDEX(Prop2022DistTar!$F$19:$F$27,F$39) -> 410048.2 | G171: =INDEX(Prop2022DistTar!$F$19:$F$27,G$39) -> 1063952.846 | H171: =INDEX(Prop2022DistTar!$F$19:$F$27,H$39) -> 161925.586 | I171: =INDEX(Prop2022DistTar!$F$19:$F$27,I$39) -> 113230.273 | J171: =INDEX(Prop2022DistTar!$F$19:$F$27,J$39) -> 635368.371 | K171: =INDEX(Prop2022DistTar!$F$19:$F$27,K$39) -> 1379242.187
B173: Distribution revenue | C173: Fixed | D173: PkBlk1 | E173: PkBlk2 | F173: PkBlk3 | G173: PkBlk4 | H173: PkBlk5 | I173: Shd1Blk1 | J173: Shd1Blk2 | K173: Shd1Blk3
B175: =B169 -> Existing : Tariff V - SP AusNet Central - Non Residential | C175: =INDEX(Prop2022DistTar!$H$19:$H$27,C$40) -> 1498577.039 | D175: =INDEX(Prop2022DistTar!$H$19:$H$27,D$40) -> 97952.51223 | E175: =INDEX(Prop2022DistTar!$H$19:$H$27,E$40) -> 74800.97377 | F175: =INDEX(Prop2022DistTar!$H$19:$H$27,F$40) -> 388479.6647 | G175: =INDEX(Prop2022DistTar!$H$19:$H$27,G$40) -> 756470.4735 | H175: =INDEX(Prop2022DistTar!$H$19:$H$27,H$40) -> 170993.4188 | I175: =INDEX(Prop2022DistTar!$H$19:$H$27,I$40) -> 83631.87964 | J175: =INDEX(Prop2022DistTar!$H$19:$H$27,J$40) -> 387828.8537 | K175: =INDEX(Prop2022DistTar!$H$19:$H$27,K$40) -> 801339.7106
B177: =B171 -> Proposed : Tariff V - SP AusNet Central - Non Residential | C177: =INDEX(Prop2022DistTar!$G$19:$G$27,C$39) -> 1687945.388 | D177: =INDEX(Prop2022DistTar!$G$19:$G$27,D$39) -> 94703.57047 | E177: =INDEX(Prop2022DistTar!$G$19:$G$27,E$39) -> 72357.74362 | F177: =INDEX(Prop2022DistTar!$G$19:$G$27,F$39) -> 378105.4452 | G177: =INDEX(Prop2022DistTar!$G$19:$G$27,G$39) -> 748916.4083 | H177: =INDEX(Prop2022DistTar!$G$19:$G$27,H$39) -> 165034.5573 | I177: =INDEX(Prop2022DistTar!$G$19:$G$27,I$39) -> 80744.50768 | J177: =INDEX(Prop2022DistTar!$G$19:$G$27,J$39) -> 373024.7706 | K177: =INDEX(Prop2022DistTar!$G$19:$G$27,K$39) -> 785064.6528
B179: Revenue | C179: Total
B180: =B175 -> Existing : Tariff V - SP AusNet Central - Non Residential | C180: =SUM(C175:K175) -> 4260074.526
B181: =B177 -> Proposed : Tariff V - SP AusNet Central - Non Residential | C181: =SUM(C177:K177) -> 4385897.044
B183: Average price movement | C183: =IF(C181=0,"",C181/C180) -> 1.029535286
B185: =IF(C183="","",IF(C183<=$C$13,"REBALANCING CONTROL COMPLIANT","REBALANCING CONTROL BREACHED")) -> REBALANCING CONTROL COMPLIANT
B189: =Prop2022DistTar!B39 -> Tariff V - SP AusNet West - Non Residential | C189: 1 | D189: 2 | E189: 3 | F189: 4 | G189: 5
C190: 1 | D190: 2 | E190: 3 | F190: 4 | G190: 5 | H190: 6 | I190: 7 | J190: 8 | K190: 9
B191: Distribution tariff | C191: Fixed | D191: PkBlk1 | E191: PkBlk2 | F191: PkBlk3 | G191: PkBlk4 | H191: OPkBlk1 | I191: OPkBlk2 | J191: OPkBlk3 | K191: OPkBlk4
B193: ="Existing : "&Prop2022DistTar!C39 -> Existing : Tariff V - SP AusNet West - Non Residential | C193: =INDEX(Prop2022DistTar!$E$41:$E$49,C$40) -> 0.4028 | D193: =INDEX(Prop2022DistTar!$E$41:$E$49,D$40) -> 1.8216 | E193: =INDEX(Prop2022DistTar!$E$41:$E$49,E$40) -> 1.5341 | F193: =INDEX(Prop2022DistTar!$E$41:$E$49,F$40) -> 0.9406 | G193: =INDEX(Prop2022DistTar!$E$41:$E$49,G$40) -> 0.3458 | H193: =INDEX(Prop2022DistTar!$E$41:$E$49,H$40) -> 0.8465 | I193: =INDEX(Prop2022DistTar!$E$41:$E$49,I$40) -> 0.713 | J193: =INDEX(Prop2022DistTar!$E$41:$E$49,J$40) -> 0.3458 | K193: =INDEX(Prop2022DistTar!$E$41:$E$49,K$40) -> 0.2553
B195: ="Proposed : "&B189 -> Proposed : Tariff V - SP AusNet West - Non Residential | C195: =INDEX(Prop2022DistTar!$D$41:$D$49,C$39) -> 0.4537 | D195: =INDEX(Prop2022DistTar!$D$41:$D$49,D$39) -> 1.6438 | E195: =INDEX(Prop2022DistTar!$D$41:$D$49,E$39) -> 1.3854 | F195: =INDEX(Prop2022DistTar!$D$41:$D$49,F$39) -> 0.8559 | G195: =INDEX(Prop2022DistTar!$D$41:$D$49,G$39) -> 0.3209 | H195: =INDEX(Prop2022DistTar!$D$41:$D$49,H$39) -> 0.7617 | I195: =INDEX(Prop2022DistTar!$D$41:$D$49,I$39) -> 0.6417 | J195: =INDEX(Prop2022DistTar!$D$41:$D$49,J$39) -> 0.3092 | K195: =INDEX(Prop2022DistTar!$D$41:$D$49,K$39) -> 0.23
B197: Distribution volumes (actual) | C197: Fixed | D197: PkBlk1 | E197: PkBlk2 | F197: PkBlk3 | G197: PkBlk4 | H197: PkBlk5 | I197: Shd1Blk1 | J197: Shd1Blk2 | K197: Shd1Blk3
B199: =B193 -> Existing : Tariff V - SP AusNet West - Non Residential | C199: =INDEX(Prop2022DistTar!$F$41:$F$49,C$39) -> 6008.46209 | D199: =INDEX(Prop2022DistTar!$F$41:$F$49,D$39) -> 46138.148 | E199: =INDEX(Prop2022DistTar!$F$41:$F$49,E$39) -> 35255.959 | F199: =INDEX(Prop2022DistTar!$F$41:$F$49,F$39) -> 182214.498 | G199: =INDEX(Prop2022DistTar!$F$41:$F$49,G$39) -> 382790.315 | H199: =INDEX(Prop2022DistTar!$F$41:$F$49,H$39) -> 76826.113 | I199: =INDEX(Prop2022DistTar!$F$41:$F$49,I$39) -> 48845.392 | J199: =INDEX(Prop2022DistTar!$F$41:$F$49,J$39) -> 246988.187 | K199: =INDEX(Prop2022DistTar!$F$41:$F$49,K$39) -> 402194.768
B201: =B195 -> Proposed : Tariff V - SP AusNet West - Non Residential | C201: =INDEX(Prop2022DistTar!$F$41:$F$49,C$39) -> 6008.46209 | D201: =INDEX(Prop2022DistTar!$F$41:$F$49,D$39) -> 46138.148 | E201: =INDEX(Prop2022DistTar!$F$41:$F$49,E$39) -> 35255.959 | F201: =INDEX(Prop2022DistTar!$F$41:$F$49,F$39) -> 182214.498 | G201: =INDEX(Prop2022DistTar!$F$41:$F$49,G$39) -> 382790.315 | H201: =INDEX(Prop2022DistTar!$F$41:$F$49,H$39) -> 76826.113 | I201: =INDEX(Prop2022DistTar!$F$41:$F$49,I$39) -> 48845.392 | J201: =INDEX(Prop2022DistTar!$F$41:$F$49,J$39) -> 246988.187 | K201: =INDEX(Prop2022DistTar!$F$41:$F$49,K$39) -> 402194.768
B203: Distribution revenue | C203: Fixed | D203: PkBlk1 | E203: PkBlk2 | F203: PkBlk3 | G203: PkBlk4 | H203: PkBlk5 | I203: Shd1Blk1 | J203: Shd1Blk2 | K203: Shd1Blk3
B205: =B199 -> Existing : Tariff V - SP AusNet West - Non Residential | C205: =INDEX(Prop2022DistTar!$H$41:$H$49,C$40) -> 883376.1134 | D205: =INDEX(Prop2022DistTar!$H$41:$H$49,D$40) -> 84045.2504 | E205: =INDEX(Prop2022DistTar!$H$41:$H$49,E$40) -> 54086.1667 | F205: =INDEX(Prop2022DistTar!$H$41:$H$49,F$40) -> 171390.9568 | G205: =INDEX(Prop2022DistTar!$H$41:$H$49,G$40) -> 132368.8909 | H205: =INDEX(Prop2022DistTar!$H$41:$H$49,H$40) -> 65033.30465 | I205: =INDEX(Prop2022DistTar!$H$41:$H$49,I$40) -> 34826.7645 | J205: =INDEX(Prop2022DistTar!$H$41:$H$49,J$40) -> 85408.51506 | K205: =INDEX(Prop2022DistTar!$H$41:$H$49,K$40) -> 102680.3243
B207: =B201 -> Proposed : Tariff V - SP AusNet West - Non Residential | C207: =INDEX(Prop2022DistTar!$G$41:$G$49,C$39) -> 995004.3264 | D207: =INDEX(Prop2022DistTar!$G$41:$G$49,D$39) -> 75841.88768 | E207: =INDEX(Prop2022DistTar!$G$41:$G$49,E$39) -> 48843.6056 | F207: =INDEX(Prop2022DistTar!$G$41:$G$49,F$39) -> 155957.3888 | G207: =INDEX(Prop2022DistTar!$G$41:$G$49,G$39) -> 122837.4121 | H207: =INDEX(Prop2022DistTar!$G$41:$G$49,H$39) -> 58518.45027 | I207: =INDEX(Prop2022DistTar!$G$41:$G$49,I$39) -> 31344.08805 | J207: =INDEX(Prop2022DistTar!$G$41:$G$49,J$39) -> 76368.74742 | K207: =INDEX(Prop2022DistTar!$G$41:$G$49,K$39) -> 92504.79664
B209: Revenue | C209: Total
B210: =B205 -> Existing : Tariff V - SP AusNet West - Non Residential | C210: =SUM(C205:K205) -> 1613216.287
B211: =B207 -> Proposed : Tariff V - SP AusNet West - Non Residential | C211: =SUM(C207:K207) -> 1657220.703
B213: Average price movement | C213: =IF(C211=0,"",C211/C210) -> 1.027277444
B215: =IF(C213="","",IF(C213<=$C$13,"REBALANCING CONTROL COMPLIANT","REBALANCING CONTROL BREACHED")) -> REBALANCING CONTROL COMPLIANT
B219: =Prop2022DistTar!B61 -> Tariff V - Adjoining Central - Non Residential | C219: 1 | D219: 2 | E219: 3 | F219: 4 | G219: 5
C220: 1 | D220: 2 | E220: 3 | F220: 4 | G220: 5 | H220: 6 | I220: 7 | J220: 8 | K220: 9
B221: Distribution tariff | C221: Fixed | D221: PkBlk1 | E221: PkBlk2 | F221: PkBlk3 | G221: PkBlk4 | H221: OPkBlk1 | I221: OPkBlk2 | J221: OPkBlk3 | K221: OPkBlk4
B223: ="Existing : "&Prop2022DistTar!C61 -> Existing : Tariff V - Adjoining Central - Non Residential | C223: =INDEX(Prop2022DistTar!$E$63:$E$71,C$40) -> 0.4028 | D223: =INDEX(Prop2022DistTar!$E$63:$E$71,D$40) -> 4.1747 | E223: =INDEX(Prop2022DistTar!$E$63:$E$71,E$40) -> 3.9757 | F223: =INDEX(Prop2022DistTar!$E$63:$E$71,F$40) -> 3.5366 | G223: =INDEX(Prop2022DistTar!$E$63:$E$71,G$40) -> 3.3579 | H223: =INDEX(Prop2022DistTar!$E$63:$E$71,H$40) -> 3.7176 | I223: =INDEX(Prop2022DistTar!$E$63:$E$71,I$40) -> 3.53 | J223: =INDEX(Prop2022DistTar!$E$63:$E$71,J$40) -> 3.3582 | K223: =INDEX(Prop2022DistTar!$E$63:$E$71,K$40) -> 3.1979
B225: ="Proposed : "&B219 -> Proposed : Tariff V - Adjoining Central - Non Residential | C225: =INDEX(Prop2022DistTar!$D$63:$D$71,C$39) -> 0.4537 | D225: =INDEX(Prop2022DistTar!$D$63:$D$71,D$39) -> 4.0205 | E225: =INDEX(Prop2022DistTar!$D$63:$D$71,E$39) -> 3.8312 | F225: =INDEX(Prop2022DistTar!$D$63:$D$71,F$39) -> 3.6217 | G225: =INDEX(Prop2022DistTar!$D$63:$D$71,G$39) -> 3.4207 | H225: =INDEX(Prop2022DistTar!$D$63:$D$71,H$39) -> 3.7008 | I225: =INDEX(Prop2022DistTar!$D$63:$D$71,I$39) -> 3.5526 | J225: =INDEX(Prop2022DistTar!$D$63:$D$71,J$39) -> 3.4425 | K225: =INDEX(Prop2022DistTar!$D$63:$D$71,K$39) -> 3.3584
B227: Distribution volumes (actual) | C227: Fixed | D227: PkBlk1 | E227: PkBlk2 | F227: PkBlk3 | G227: PkBlk4 | H227: PkBlk5 | I227: Shd1Blk1 | J227: Shd1Blk2 | K227: Shd1Blk3
B229: =B223 -> Existing : Tariff V - Adjoining Central - Non Residential | C229: =INDEX(Prop2022DistTar!$F$63:$F$71,C$39) -> 16.77404686 | D229: =INDEX(Prop2022DistTar!$F$63:$F$71,D$39) -> 181.835 | E229: =INDEX(Prop2022DistTar!$F$63:$F$71,E$39) -> 141.354 | F229: =INDEX(Prop2022DistTar!$F$63:$F$71,F$39) -> 634.545 | G229: =INDEX(Prop2022DistTar!$F$63:$F$71,G$39) -> 77.842 | H229: =INDEX(Prop2022DistTar!$F$63:$F$71,H$39) -> 274.785 | I229: =INDEX(Prop2022DistTar!$F$63:$F$71,I$39) -> 183.367 | J229: =INDEX(Prop2022DistTar!$F$63:$F$71,J$39) -> 1222.705 | K229: =INDEX(Prop2022DistTar!$F$63:$F$71,K$39) -> 468.757
B231: =B225 -> Proposed : Tariff V - Adjoining Central - Non Residential | C231: =INDEX(Prop2022DistTar!$F$63:$F$71,C$39) -> 16.77404686 | D231: =INDEX(Prop2022DistTar!$F$63:$F$71,D$39) -> 181.835 | E231: =INDEX(Prop2022DistTar!$F$63:$F$71,E$39) -> 141.354 | F231: =INDEX(Prop2022DistTar!$F$63:$F$71,F$39) -> 634.545 | G231: =INDEX(Prop2022DistTar!$F$63:$F$71,G$39) -> 77.842 | H231: =INDEX(Prop2022DistTar!$F$63:$F$71,H$39) -> 274.785 | I231: =INDEX(Prop2022DistTar!$F$63:$F$71,I$39) -> 183.367 | J231: =INDEX(Prop2022DistTar!$F$63:$F$71,J$39) -> 1222.705 | K231: =INDEX(Prop2022DistTar!$F$63:$F$71,K$39) -> 468.757
B233: Distribution revenue | C233: Fixed | D233: PkBlk1 | E233: PkBlk2 | F233: PkBlk3 | G233: PkBlk4 | H233: PkBlk5 | I233: Shd1Blk1 | J233: Shd1Blk2 | K233: Shd1Blk3
B235: =B229 -> Existing : Tariff V - Adjoining Central - Non Residential | C235: =INDEX(Prop2022DistTar!$H$63:$H$71,C$40) -> 2466.153917 | D235: =INDEX(Prop2022DistTar!$H$63:$H$71,D$40) -> 759.1065745 | E235: =INDEX(Prop2022DistTar!$H$63:$H$71,E$40) -> 561.9810978 | F235: =INDEX(Prop2022DistTar!$H$63:$H$71,F$40) -> 2244.131847 | G235: =INDEX(Prop2022DistTar!$H$63:$H$71,G$40) -> 261.3856518 | H235: =INDEX(Prop2022DistTar!$H$63:$H$71,H$40) -> 1021.540716 | I235: =INDEX(Prop2022DistTar!$H$63:$H$71,I$40) -> 647.28551 | J235: =INDEX(Prop2022DistTar!$H$63:$H$71,J$40) -> 4106.087931 | K235: =INDEX(Prop2022DistTar!$H$63:$H$71,K$40) -> 1499.03801
B237: =B231 -> Proposed : Tariff V - Adjoining Central - Non Residential | C237: =INDEX(Prop2022DistTar!$G$63:$G$71,C$39) -> 2777.790547 | D237: =INDEX(Prop2022DistTar!$G$63:$G$71,D$39) -> 731.0676175 | E237: =INDEX(Prop2022DistTar!$G$63:$G$71,E$39) -> 541.5554448 | F237: =INDEX(Prop2022DistTar!$G$63:$G$71,F$39) -> 2298.131627 | G237: =INDEX(Prop2022DistTar!$G$63:$G$71,G$39) -> 266.2741294 | H237: =INDEX(Prop2022DistTar!$G$63:$G$71,H$39) -> 1016.924328 | I237: =INDEX(Prop2022DistTar!$G$63:$G$71,I$39) -> 651.4296042 | J237: =INDEX(Prop2022DistTar!$G$63:$G$71,J$39) -> 4209.161962 | K237: =INDEX(Prop2022DistTar!$G$63:$G$71,K$39) -> 1574.273509
B239: Revenue | C239: Total
B240: =B235 -> Existing : Tariff V - Adjoining Central - Non Residential | C240: =SUM(C235:K235) -> 13566.71126
B241: =B237 -> Proposed : Tariff V - Adjoining Central - Non Residential | C241: =SUM(C237:K237) -> 14066.60877
B243: Average price movement | C243: =IF(C241=0,"",C241/C240) -> 1.036847361
B245: =IF(C243="","",IF(C243<=$C$13,"REBALANCING CONTROL COMPLIANT","REBALANCING CONTROL BREACHED")) -> REBALANCING CONTROL COMPLIANT
B249: =Prop2022DistTar!B83 -> Tariff V - Adjoining West - Non Residential | C249: 1 | D249: 2 | E249: 3 | F249: 4 | G249: 5
C250: 1 | D250: 2 | E250: 3 | F250: 4 | G250: 5 | H250: 6 | I250: 7 | J250: 8 | K250: 9
B251: Distribution tariff | C251: Fixed | D251: PkBlk1 | E251: PkBlk2 | F251: PkBlk3 | G251: PkBlk4 | H251: OPkBlk1 | I251: OPkBlk2 | J251: OPkBlk3 | K251: OPkBlk4
B253: ="Existing : "&Prop2022DistTar!C83 -> Existing : Tariff V - Adjoining West - Non Residential | C253: =INDEX(Prop2022DistTar!$E$85:$E$93,C$40) -> 0.4028 | D253: =INDEX(Prop2022DistTar!$E$85:$E$93,D$40) -> 4.9333 | E253: =INDEX(Prop2022DistTar!$E$85:$E$93,E$40) -> 4.6259 | F253: =INDEX(Prop2022DistTar!$E$85:$E$93,F$40) -> 3.8874 | G253: =INDEX(Prop2022DistTar!$E$85:$E$93,G$40) -> 3.3166 | H253: =INDEX(Prop2022DistTar!$E$85:$E$93,H$40) -> 3.7971 | I253: =INDEX(Prop2022DistTar!$E$85:$E$93,I$40) -> 3.6161 | J253: =INDEX(Prop2022DistTar!$E$85:$E$93,J$40) -> 3.1371 | K253: =INDEX(Prop2022DistTar!$E$85:$E$93,K$40) -> 2.9534
B255: ="Proposed : "&B249 -> Proposed : Tariff V - Adjoining West - Non Residential | C255: =INDEX(Prop2022DistTar!$D$85:$D$93,C$39) -> 0.4537 | D255: =INDEX(Prop2022DistTar!$D$85:$D$93,D$39) -> 4.9613 | E255: =INDEX(Prop2022DistTar!$D$85:$D$93,E$39) -> 4.657 | F255: =INDEX(Prop2022DistTar!$D$85:$D$93,F$39) -> 3.9999 | G255: =INDEX(Prop2022DistTar!$D$85:$D$93,G$39) -> 3.516 | H255: =INDEX(Prop2022DistTar!$D$85:$D$93,H$39) -> 3.8141 | I255: =INDEX(Prop2022DistTar!$D$85:$D$93,I$39) -> 3.629 | J255: =INDEX(Prop2022DistTar!$D$85:$D$93,J$39) -> 3.1726 | K255: =INDEX(Prop2022DistTar!$D$85:$D$93,K$39) -> 3.0212
B257: Distribution volumes (actual) | C257: Fixed | D257: PkBlk1 | E257: PkBlk2 | F257: PkBlk3 | G257: PkBlk4 | H257: PkBlk5 | I257: Shd1Blk1 | J257: Shd1Blk2 | K257: Shd1Blk3
B259: =B253 -> Existing : Tariff V - Adjoining West - Non Residential | C259: =INDEX(Prop2022DistTar!$F$85:$F$93,C$39) -> 280.1023233 | D259: =INDEX(Prop2022DistTar!$F$85:$F$93,D$39) -> 2554.581 | E259: =INDEX(Prop2022DistTar!$F$85:$F$93,E$39) -> 2128.025 | F259: =INDEX(Prop2022DistTar!$F$85:$F$93,F$39) -> 11241.86 | G259: =INDEX(Prop2022DistTar!$F$85:$F$93,G$39) -> 19772.989 | H259: =INDEX(Prop2022DistTar!$F$85:$F$93,H$39) -> 4681.94 | I259: =INDEX(Prop2022DistTar!$F$85:$F$93,I$39) -> 3357.369 | J259: =INDEX(Prop2022DistTar!$F$85:$F$93,J$39) -> 18023.665 | K259: =INDEX(Prop2022DistTar!$F$85:$F$93,K$39) -> 24556.594
B261: =B255 -> Proposed : Tariff V - Adjoining West - Non Residential | C261: =INDEX(Prop2022DistTar!$F$85:$F$93,C$39) -> 280.1023233 | D261: =INDEX(Prop2022DistTar!$F$85:$F$93,D$39) -> 2554.581 | E261: =INDEX(Prop2022DistTar!$F$85:$F$93,E$39) -> 2128.025 | F261: =INDEX(Prop2022DistTar!$F$85:$F$93,F$39) -> 11241.86 | G261: =INDEX(Prop2022DistTar!$F$85:$F$93,G$39) -> 19772.989 | H261: =INDEX(Prop2022DistTar!$F$85:$F$93,H$39) -> 4681.94 | I261: =INDEX(Prop2022DistTar!$F$85:$F$93,I$39) -> 3357.369 | J261: =INDEX(Prop2022DistTar!$F$85:$F$93,J$39) -> 18023.665 | K261: =INDEX(Prop2022DistTar!$F$85:$F$93,K$39) -> 24556.594
B263: Distribution revenue | C263: Fixed | D263: PkBlk1 | E263: PkBlk2 | F263: PkBlk3 | G263: PkBlk4 | H263: PkBlk5 | I263: Shd1Blk1 | J263: Shd1Blk2 | K263: Shd1Blk3
B265: =B259 -> Existing : Tariff V - Adjoining West - Non Residential | C265: =INDEX(Prop2022DistTar!$H$85:$H$93,C$40) -> 41181.20378 | D265: =INDEX(Prop2022DistTar!$H$85:$H$93,D$40) -> 12602.51445 | E265: =INDEX(Prop2022DistTar!$H$85:$H$93,E$40) -> 9844.030848 | F265: =INDEX(Prop2022DistTar!$H$85:$H$93,F$40) -> 43701.60656 | G265: =INDEX(Prop2022DistTar!$H$85:$H$93,G$40) -> 65579.09532 | H265: =INDEX(Prop2022DistTar!$H$85:$H$93,H$40) -> 17777.79437 | I265: =INDEX(Prop2022DistTar!$H$85:$H$93,I$40) -> 12140.58204 | J265: =INDEX(Prop2022DistTar!$H$85:$H$93,J$40) -> 56542.03947 | K265: =INDEX(Prop2022DistTar!$H$85:$H$93,K$40) -> 72525.44472
B267: =B261 -> Proposed : Tariff V - Adjoining West - Non Residential | C267: =INDEX(Prop2022DistTar!$G$85:$G$93,C$39) -> 46385.0848 | D267: =INDEX(Prop2022DistTar!$G$85:$G$93,D$39) -> 12674.04272 | E267: =INDEX(Prop2022DistTar!$G$85:$G$93,E$39) -> 9910.212425 | F267: =INDEX(Prop2022DistTar!$G$85:$G$93,F$39) -> 44966.31581 | G267: =INDEX(Prop2022DistTar!$G$85:$G$93,G$39) -> 69521.82932 | H267: =INDEX(Prop2022DistTar!$G$85:$G$93,H$39) -> 17857.38735 | I267: =INDEX(Prop2022DistTar!$G$85:$G$93,I$39) -> 12183.8921 | J267: =INDEX(Prop2022DistTar!$G$85:$G$93,J$39) -> 57181.87958 | K267: =INDEX(Prop2022DistTar!$G$85:$G$93,K$39) -> 74190.38179
B269: Revenue | C269: Total
B270: =B265 -> Existing : Tariff V - Adjoining West - Non Residential | C270: =SUM(C265:K265) -> 331894.3116
B271: =B267 -> Proposed : Tariff V - Adjoining West - Non Residential | C271: =SUM(C267:K267) -> 344871.0259
B273: Average price movement | C273: =IF(C271=0,"",C271/C270) -> 1.039098936
B275: =IF(C273="","",IF(C273<=$C$13,"REBALANCING CONTROL COMPLIANT","REBALANCING CONTROL BREACHED")) -> REBALANCING CONTROL COMPLIANT
B279: =Prop2022DistTar!B95 -> Tariff M - SP AusNet Central
C280: 1 | D280: 2 | E280: 3
B281: Distribution tariff | C281: DemBlk1 | D281: DemBlk2 | E281: DemBlk2
B282: ="Existing: "&Prop2022DistTar!C95 -> Existing: Tariff M - SP AusNet Central | C282: =INDEX(Prop2022DistTar!$E$96:$E$98,C280) -> 680.0702 | D282: =INDEX(Prop2022DistTar!$E$96:$E$98,D280) -> 647.7102 | E282: =INDEX(Prop2022DistTar!$E$96:$E$98,E280) -> 135.2432
B283: ="Proposed: "&B279 -> Proposed: Tariff M - SP AusNet Central | C283: =INDEX(Prop2022DistTar!$D$96:$D$98,C280) -> 692.8097 | D283: =INDEX(Prop2022DistTar!$D$96:$D$98,D280) -> 659.8435 | E283: =INDEX(Prop2022DistTar!$D$96:$D$98,E280) -> 137.7767
B285: Distribution volumes (actual) | C285: DemBlk1 | D285: DemBlk2 | E285: DemBlk2
B286: =B282 -> Existing: Tariff M - SP AusNet Central | C286: =INDEX(Prop2022DistTar!$F$96:$F$98,C$280) -> 167.93 | D286: =INDEX(Prop2022DistTar!$F$96:$F$98,D$280) -> 50.95 | E286: =INDEX(Prop2022DistTar!$F$96:$F$98,E$280) -> 0
B287: =B283 -> Proposed: Tariff M - SP AusNet Central | C287: =INDEX(Prop2022DistTar!$F$96:$F$98,C$280) -> 167.93 | D287: =INDEX(Prop2022DistTar!$F$96:$F$98,D$280) -> 50.95 | E287: =INDEX(Prop2022DistTar!$F$96:$F$98,E$280) -> 0
B289: Distribution revenue | C289: DemBlk1 | D289: DemBlk2 | E289: DemBlk2
B290: =B286 -> Existing: Tariff M - SP AusNet Central | C290: =INDEX(Prop2022DistTar!$H$96:$H$98,C280) -> 114204.1887 | D290: =INDEX(Prop2022DistTar!$H$96:$H$98,D280) -> 33000.83469 | E290: =INDEX(Prop2022DistTar!$H$96:$H$98,E280) -> 0
B291: =B287 -> Proposed: Tariff M - SP AusNet Central | C291: =INDEX(Prop2022DistTar!$G$96:$G$98,C280) -> 116343.5329 | D291: =INDEX(Prop2022DistTar!$G$96:$G$98,D280) -> 33619.02632 | E291: =INDEX(Prop2022DistTar!$G$96:$G$98,E280) -> 0
B293: Revenue | C293: Total
B294: =B290 -> Existing: Tariff M - SP AusNet Central | C294: =SUM(C290:E290) -> 147205.0234
B295: =B291 -> Proposed: Tariff M - SP AusNet Central | C295: =SUM(C291:E291) -> 149962.5592
B297: Average price movement | C297: =IF(C295=0,"",C295/C294) -> 1.018732621
B299: =IF(C297="","",IF(C297<=$C$13,"REBALANCING CONTROL COMPLIANT","REBALANCING CONTROL BREACHED")) -> REBALANCING CONTROL COMPLIANT
B303: =Prop2022DistTar!B100 -> Tariff M - SP AusNet West
C304: 1 | D304: 2 | E304: 3
B305: Distribution tariff | C305: DemBlk1 | D305: DemBlk2 | E305: DemBlk2
B306: ="Existing: "&Prop2022DistTar!C100 -> Existing: Tariff M - SP AusNet West | C306: =INDEX(Prop2022DistTar!$E$101:$E$103,C304) -> 680.0702 | D306: =INDEX(Prop2022DistTar!$E$101:$E$103,D304) -> 647.7102 | E306: =INDEX(Prop2022DistTar!$E$101:$E$103,E304) -> 135.2432
B307: ="Proposed: "&B303 -> Proposed: Tariff M - SP AusNet West | C307: =INDEX(Prop2022DistTar!$D$101:$D$103,C304) -> 692.8097 | D307: =INDEX(Prop2022DistTar!$D$101:$D$103,D304) -> 659.8435 | E307: =INDEX(Prop2022DistTar!$D$101:$D$103,E304) -> 137.7767
B309: Distribution volumes (actual) | C309: DemBlk1 | D309: DemBlk2 | E309: DemBlk2
B310: =B306 -> Existing: Tariff M - SP AusNet West | C310: =INDEX(Prop2022DistTar!$F$101:$F$103,C$280) -> 43.45 | D310: =INDEX(Prop2022DistTar!$F$101:$F$103,D$280) -> 29.05 | E310: =INDEX(Prop2022DistTar!$F$101:$F$103,E$280) -> 0
B311: =B307 -> Proposed: Tariff M - SP AusNet West | C311: =INDEX(Prop2022DistTar!$F$101:$F$103,C$280) -> 43.45 | D311: =INDEX(Prop2022DistTar!$F$101:$F$103,D$280) -> 29.05 | E311: =INDEX(Prop2022DistTar!$F$101:$F$103,E$280) -> 0
B313: Distribution revenue | C313: DemBlk1 | D313: DemBlk2 | E313: DemBlk2
B314: =B310 -> Existing: Tariff M - SP AusNet West | C314: =INDEX(Prop2022DistTar!$H$101:$H$103,C304) -> 29549.05019 | D314: =INDEX(Prop2022DistTar!$H$101:$H$103,D304) -> 18815.98131 | E314: =INDEX(Prop2022DistTar!$H$101:$H$103,E304) -> 0
B315: =B311 -> Proposed: Tariff M - SP AusNet West | C315: =INDEX(Prop2022DistTar!$G$101:$G$103,C304) -> 30102.58146 | D315: =INDEX(Prop2022DistTar!$G$101:$G$103,D304) -> 19168.45368 | E315: =INDEX(Prop2022DistTar!$G$101:$G$103,E304) -> 0
B317: Revenue | C317: Total
B318: =B314 -> Existing: Tariff M - SP AusNet West | C318: =SUM(C314:E314) -> 48365.0315
B319: =B315 -> Proposed: Tariff M - SP AusNet West | C319: =SUM(C315:E315) -> 49271.03514
B321: Average price movement | C321: =IF(C319=0,"",C319/C318) -> 1.018732618
B323: =IF(C321="","",IF(C321<=$C$13,"REBALANCING CONTROL COMPLIANT","REBALANCING CONTROL BREACHED")) -> REBALANCING CONTROL COMPLIANT
B327: =Prop2022DistTar!B105 -> Tariff M - Adjoining Central
C328: 1 | D328: 2 | E328: 3
B329: Distribution tariff | C329: DemBlk1 | D329: DemBlk2 | E329: DemBlk2
B330: ="Existing: "&Prop2022DistTar!C105 -> Existing: Tariff M - Adjoining Central | C330: =INDEX(Prop2022DistTar!$E$106:$E$108,C328) -> 680.0702 | D330: =INDEX(Prop2022DistTar!$E$106:$E$108,D328) -> 647.7102 | E330: =INDEX(Prop2022DistTar!$E$106:$E$108,E328) -> 135.2432
B331: ="Proposed: "&B327 -> Proposed: Tariff M - Adjoining Central | C331: =INDEX(Prop2022DistTar!$D$106:$D$108,C328) -> 692.8097 | D331: =INDEX(Prop2022DistTar!$D$106:$D$108,D328) -> 659.8435 | E331: =INDEX(Prop2022DistTar!$D$106:$D$108,E328) -> 137.7767
B333: Distribution volumes (actual) | C333: DemBlk1 | D333: DemBlk2 | E333: DemBlk2
B334: =B330 -> Existing: Tariff M - Adjoining Central | C334: =INDEX(Prop2022DistTar!$F$106:$F$108,C$280) -> 0 | D334: =INDEX(Prop2022DistTar!$F$106:$F$108,D$280) -> 0 | E334: =INDEX(Prop2022DistTar!$F$106:$F$108,E$280) -> 0
B335: =B331 -> Proposed: Tariff M - Adjoining Central | C335: =INDEX(Prop2022DistTar!$F$106:$F$108,C$280) -> 0 | D335: =INDEX(Prop2022DistTar!$F$106:$F$108,D$280) -> 0 | E335: =INDEX(Prop2022DistTar!$F$106:$F$108,E$280) -> 0
B337: Distribution revenue | C337: DemBlk1 | D337: DemBlk2 | E337: DemBlk2
B338: =B334 -> Existing: Tariff M - Adjoining Central | C338: =INDEX(Prop2022DistTar!$H$106:$H$108,C328) -> 0 | D338: =INDEX(Prop2022DistTar!$H$106:$H$108,D328) -> 0 | E338: =INDEX(Prop2022DistTar!$H$106:$H$108,E328) -> 0
B339: =B335 -> Proposed: Tariff M - Adjoining Central | C339: =INDEX(Prop2022DistTar!$G$106:$G$108,C328) -> 0 | D339: =INDEX(Prop2022DistTar!$G$106:$G$108,D328) -> 0 | E339: =INDEX(Prop2022DistTar!$G$106:$G$108,E328) -> 0
B341: Revenue | C341: Total
B342: =B338 -> Existing: Tariff M - Adjoining Central | C342: =SUM(C338:E338) -> 0
... 83 more rows

Sheet ARS
A1: ="Tariff Approval - "&'Model update'!B3 -> Tariff Approval - AusNet Services
A3: Ancillary Reference Services (Exc GST)
B5: ='Model update'!$B$8 -> 2021 | C5: ='Model update'!$B$5 -> 2022
A6: Disconnection | B6: 60.36 | C6: =ROUND(B6*(1+'Model update'!$B$30),2) -> 62.68
A7: Reconnection of Meter | B7: 60.36 | C7: =ROUND(B7*(1+'Model update'!$B$30),2) -> 62.68
A8: Special Meter Reads | B8: 9.36 | C8: =ROUND(B8*(1+'Model update'!$B$30),2) -> 9.72
A9: Meter and gas installation test | B9: 181.09 | C9: =ROUND(B9*(1+'Model update'!$B$30),2) -> 188.06
A11: Note: Formula is as per AA2018-22, Part B, section 2, p9 : ART = ARTt-1 * (1+CPIt)

Sheet PTRM_Link
B3: Full Year CPI | C3: =(1+6.1%)^0.5-1 -> 0.03004854255
C6: Standing Charge ($ per customer per year) | D6: Peak 0 - 0.1 | E6: Peak 0.1 - 0.2 | F6: Peak 0.2 - 1.4 | G6: Peak > 1.4 | H6: Off Peak 0 - 0.1 | I6: Off Peak 0.1 - 0.2 | J6: Off Peak 0.2 - 1.4 | K6: Off Peak > 1.4 | L6: 0 - 10 MHQ ($/GJ/hour) | M6: 10 - 50 MHQ ($/GJ/hour) | N6: > 50 MHQ ($/GJ/hour)
C7: 2022 | D7: 2022 | E7: 2022 | F7: 2022 | G7: 2022 | H7: 2022 | I7: 2022 | J7: 2022 | K7: 2022 | L7: 2022 | M7: 2022 | N7: 2022
B8: Domestic Tariff V Zone - SP AusNet Central | C8: =Prop2022DistTar!D8*365 -> 158.629 | D8: =Prop2022DistTar!$D9 -> 5.9708 | E8: =Prop2022DistTar!$D10 -> 3.5987 | F8: =Prop2022DistTar!$D11 -> 0.6257 | G8: =Prop2022DistTar!$D12 -> 0.562 | H8: =Prop2022DistTar!$D13 -> 2.0239 | I8: =Prop2022DistTar!$D14 -> 1.5994 | J8: =Prop2022DistTar!$D15 -> 0.613 | K8: =Prop2022DistTar!$D16 -> 0.2174 | L8: 0 | M8: 0 | N8: 0
B9: Commercial Tariff V Zone - SP AusNet Central | C9: =Prop2022DistTar!D19*365 -> 165.6005 | D9: =Prop2022DistTar!$D20 -> 1.0756 | E9: =Prop2022DistTar!$D21 -> 1.0247 | F9: =Prop2022DistTar!$D22 -> 0.9221 | G9: =Prop2022DistTar!$D23 -> 0.7039 | H9: =Prop2022DistTar!$D24 -> 1.0192 | I9: =Prop2022DistTar!$D25 -> 0.7131 | J9: =Prop2022DistTar!$D26 -> 0.5871 | K9: =Prop2022DistTar!$D27 -> 0.5692 | L9: 0 | M9: 0 | N9: 0
B10: Domestic Tariff V Zone - SP AusNet West | C10: =Prop2022DistTar!D30*365 -> 158.629 | D10: =Prop2022DistTar!$D31 -> 3.156 | E10: =Prop2022DistTar!$D32 -> 2.2725 | F10: =Prop2022DistTar!$D33 -> 0.7341 | G10: =Prop2022DistTar!$D34 -> 0.7036 | H10: =Prop2022DistTar!$D35 -> 0.9758 | I10: =Prop2022DistTar!$D36 -> 0.9145 | J10: =Prop2022DistTar!$D37 -> 0.5214 | K10: =Prop2022DistTar!$D38 -> 0.1029 | L10: 0 | M10: 0 | N10: 0
B11: Commercial Tariff V Zone - SP AusNet West | C11: =Prop2022DistTar!D41*365 -> 165.6005 | D11: =Prop2022DistTar!$D42 -> 1.6438 | E11: =Prop2022DistTar!$D43 -> 1.3854 | F11: =Prop2022DistTar!$D44 -> 0.8559 | G11: =Prop2022DistTar!$D45 -> 0.3209 | H11: =Prop2022DistTar!$D46 -> 0.7617 | I11: =Prop2022DistTar!$D47 -> 0.6417 | J11: =Prop2022DistTar!$D48 -> 0.3092 | K11: =Prop2022DistTar!$D49 -> 0.23 | L11: 0 | M11: 0 | N11: 0
B12: Domestic Tariff V Zone - SP AusNet Adjoining Central | C12: =Prop2022DistTar!D52*365 -> 158.629 | D12: =Prop2022DistTar!$D53 -> 9.7783 | E12: =Prop2022DistTar!$D54 -> 7.0469 | F12: =Prop2022DistTar!$D55 -> 2.51 | G12: =Prop2022DistTar!$D56 -> 2.4068 | H12: =Prop2022DistTar!$D57 -> 4.3792 | I12: =Prop2022DistTar!$D58 -> 2.5396 | J12: =Prop2022DistTar!$D59 -> 2.2098 | K12: =Prop2022DistTar!$D60 -> 2.1251 | L12: 0 | M12: 0 | N12: 0
B13: Commercial Tariff V Zone - SP AusNet Adjoining Central | C13: =Prop2022DistTar!D63*365 -> 165.6005 | D13: =Prop2022DistTar!$D64 -> 4.0205 | E13: =Prop2022DistTar!$D65 -> 3.8312 | F13: =Prop2022DistTar!$D66 -> 3.6217 | G13: =Prop2022DistTar!$D67 -> 3.4207 | H13: =Prop2022DistTar!$D68 -> 3.7008 | I13: =Prop2022DistTar!$D69 -> 3.5526 | J13: =Prop2022DistTar!$D70 -> 3.4425 | K13: =Prop2022DistTar!$D71 -> 3.3584 | L13: 0 | M13: 0 | N13: 0
B14: Domestic Tariff V Zone - SP AusNet Adjoining West | C14: =Prop2022DistTar!D74*365 -> 158.629 | D14: =Prop2022DistTar!$D75 -> 6.8521 | E14: =Prop2022DistTar!$D76 -> 5.753 | F14: =Prop2022DistTar!$D77 -> 2.9525 | G14: =Prop2022DistTar!$D78 -> 2.6482 | H14: =Prop2022DistTar!$D79 -> 4.0662 | I14: =Prop2022DistTar!$D80 -> 3.0752 | J14: =Prop2022DistTar!$D81 -> 2.2019 | K14: =Prop2022DistTar!$D82 -> 2.133 | L14: 0 | M14: 0 | N14: 0
B15: Commercial Tariff V Zone - SP AusNet Adjoining West | C15: =Prop2022DistTar!D85*365 -> 165.6005 | D15: =Prop2022DistTar!$D86 -> 4.9613 | E15: =Prop2022DistTar!$D87 -> 4.657 | F15: =Prop2022DistTar!$D88 -> 3.9999 | G15: =Prop2022DistTar!$D89 -> 3.516 | H15: =Prop2022DistTar!$D90 -> 3.8141 | I15: =Prop2022DistTar!$D91 -> 3.629 | J15: =Prop2022DistTar!$D92 -> 3.1726 | K15: =Prop2022DistTar!$D93 -> 3.0212 | L15: 0 | M15: 0 | N15: 0
B16: Tariff D Zone - SP AusNet West & Central | C16: 0 | D16: 0 | E16: 0 | F16: 0 | G16: 0 | H16: 0 | I16: 0 | J16: 0 | K16: 0 | L16: =Prop2022DistTar!$D117 -> 316.0438 | M16: =Prop2022DistTar!$D118 -> 300.9966 | N16: =Prop2022DistTar!$D119 -> 146.1376
B17: Tariff D Zone - SP AusNet Adjoining West & Central | C17: 0 | D17: 0 | E17: 0 | F17: 0 | G17: 0 | H17: 0 | I17: 0 | J17: 0 | K17: 0 | L17: =Prop2022DistTar!$D127 -> 316.0438 | M17: =Prop2022DistTar!$D128 -> 300.9966 | N17: =Prop2022DistTar!$D129 -> 146.1376
B18: Tariff M Zone - SP AusNet West & Central | C18: 0 | D18: 0 | E18: 0 | F18: 0 | G18: 0 | H18: 0 | I18: 0 | J18: 0 | K18: 0 | L18: =Prop2022DistTar!$D96 -> 692.8097 | M18: =Prop2022DistTar!$D97 -> 659.8435 | N18: =Prop2022DistTar!$D98 -> 137.7767
B19: Tariff M Zone - SP AusNet Adjoining West & Central | C19: 0 | D19: 0 | E19: 0 | F19: 0 | G19: 0 | H19: 0 | I19: 0 | J19: 0 | K19: 0 | L19: =Prop2022DistTar!$D106 -> 692.8097 | M19: =Prop2022DistTar!$D107 -> 659.8435 | N19: =Prop2022DistTar!$D108 -> 137.7767
B23: Domestic Tariff V Zone - SP AusNet Central | C23: =C8*(1+$C$3) -> 163.3955703 | D23: =D8*(1+$C$3) -> 6.150213838 | E23: 3.70683569 | F23: 0.6445013731 | G23: 0.5788872809 | H23: 2.084715245 | I23: 1.647459639 | J23: 0.6314197566 | K23: 0.2239325531 | L23: 0 | M23: 0 | N23: 0
B24: Commercial Tariff V Zone - SP AusNet Central | C24: =C9*(1+$C$3) -> 170.5765537 | D24: 1.107920212 | E24: 1.055490742 | F24: 0.9498077611 | G24: 0.7250511691 | H24: 1.049825475 | I24: 0.7345276157 | J24: 0.6047414993 | K24: 0.5863036304 | L24: 0 | M24: 0 | N24: 0
B25: Domestic Tariff V Zone - SP AusNet West | C25: 163.3955703 | D25: 3.2508332 | E25: 2.340785313 | F25: 0.7561586351 | G25: 0.7247421545 | H25: 1.005121368 | I25: 0.9419793922 | J25: 0.5370673101 | K25: 0.105991995 | L25: 0 | M25: 0 | N25: 0
B26: Commercial Tariff V Zone - SP AusNet West | C26: 170.5765537 | D26: 1.693193794 | E26: 1.427029251 | F26: 0.8816185476 | G26: 0.3305425773 | H26: 0.7845879749 | I26: 0.6609821498 | J26: 0.3184910094 | K26: 0.2369111648 | L26: 0 | M26: 0 | N26: 0
B27: Domestic Tariff V Zone - SP AusNet Adjoining Central | C27: 163.3955703 | D27: 10.07212366 | E27: 7.258649074 | F27: 2.585421842 | G27: 2.479120832 | H27: 4.510788578 | I27: 2.615911279 | J27: 2.276201269 | K27: 2.188956158 | L27: 0 | M27: 0 | N27: 0
B28: Commercial Tariff V Zone - SP AusNet Adjoining Central | C28: 170.5765537 | D28: 4.141310165 | E28: 3.946321976 | F28: 3.730526807 | G28: 3.523487049 | H28: 3.812003646 | I28: 3.659350452 | J28: 3.545942108 | K28: 3.459315025 | L28: 0 | M28: 0 | N28: 0
B29: Domestic Tariff V Zone - SP AusNet Adjoining West | C29: 163.3955703 | D29: 7.057995618 | E29: 5.925869265 | F29: 3.041218322 | G29: 2.72777455 | H29: 4.188383384 | I29: 3.167605278 | J29: 2.268063886 | K29: 2.197093541 | L29: 0 | M29: 0 | N29: 0
B30: Commercial Tariff V Zone - SP AusNet Adjoining West | C30: 170.5765537 | D30: 5.110379834 | E30: 4.796936063 | F30: 4.120091165 | G30: 3.621650676 | H30: 3.928708146 | I30: 3.738046161 | J30: 3.267932006 | K30: 3.111982657 | L30: 0 | M30: 0 | N30: 0
B31: Tariff D Zone - SP AusNet West & Central | C31: 0 | D31: 0 | E31: 0 | F31: 0 | G31: 0 | H31: 0 | I31: 0 | J31: 0 | K31: 0 | L31: 325.5404556 | M31: 310.0411091 | N31: 150.5288219
B32: Tariff D Zone - SP AusNet Adjoining West & Central | C32: 0 | D32: 0 | E32: 0 | F32: 0 | G32: 0 | H32: 0 | I32: 0 | J32: 0 | K32: 0 | L32: 325.5404556 | M32: 310.0411091 | N32: 150.5288219
B33: Tariff M Zone - SP AusNet West & Central | C33: 0 | D33: 0 | E33: 0 | F33: 0 | G33: 0 | H33: 0 | I33: 0 | J33: 0 | K33: 0 | L33: 713.6276217 | M33: 679.6708355 | N33: 141.916689
B34: Tariff M Zone - SP AusNet Adjoining West & Central | C34: 0 | D34: 0 | E34: 0 | F34: 0 | G34: 0 | H34: 0 | I34: 0 | J34: 0 | K34: 0 | L34: 713.6276217 | M34: 679.6708355 | N34: 141.916689
